Cogmind - Beta 16 @@@ ROGUE MODE // 2025.12.14 @ 11:19:22 Player: cingulata Result: Escaped singularity! Performance ------------- Evolutions (9) 4500 Regions Visited (29) 5800 Robots Destroyed (203) 1015 Value Destroyed (11973) 11973 Prototype IDs (371) 7420 Alien Tech Used (5) 1000 Bonus (55538) 55538 TOTAL SCORE: 87246 Bonus ------- High Alert Combat Kills 2304 Follower Combat Kills 3334 Entered DSFs 500 Network Hubs Disabled 200 Registered with UFD 300 Met Optimus in HQ 500 Met Zhirov 300 MAIN.C Attacked Warlord 500 Built Enhanced Grunts 300 Met R17 at Cetus 500 Read Decrypted Archives 300 Used Core Reset Matrix 3000 Met R17 at Research 2000 Scanned by Researcher 500 Met Optimus at Protoforge 1000 Destroyed MAIN.C Guards 500 Met MAIN.C 5000 Destroyed MAIN.C Shell 5000 Destroyed MAIN.C 10000 Met Architect 300 Destroyed A8 300 Destroyed A6 400 Destroyed A5 500 Destroyed Architect 15000 Win 3000 Cogmind --------- Core Integrity 1042/1600 Matter 290/300 Energy 695/700 System Corruption 13% Temperature Cool (10) Movement Hovering (28) Location Near Former Tau Ceti IV Parts ------- > --- POWER (3) -------- Vortex Chain Reactor > --- PROPULSION (8) --- Cooled Antigrav System Combat Linear Gravjet Combat Linear Gravjet Experimental Antigrav System Gravjet Array Gravjet Array > --- UTILITY (12) ----- Concept Antigrav Storage Unit Concept Melee Reflex Suite Concept Weapon Articulator Concept Core Analysis Suite Experimental Armor Integrity Analyzer Femtoactuators Advanced Phase Shifter Experimental Powered Armor Experimental Powered Armor Graphene Brace Concept Impact Drone Bay (0/6) > --- WEAPON (2) ------- Enhanced Force Lance > --- INVENTORY (25) --- Vortex Chain Reactor Concept Zero-point Core Gravjet Array Concept Combat Aerolev Unit Concept Chromion Battery (800) Concept NT7 Matterbank (750) Long-range Terrain Scanner Femtoactuators Improved Reaction Control System Advanced Phase Shifter Layered Heavy Armor Plating Concept Lightning Penetrator Null Cannon Concept Rapid Grenade Launcher Sigix Broadsword Peak State ------------ > --- POWER ------------ Quantum Reactor Hybrid Graviton Reactor Concept Zero-point Core > --- PROPULSION ------- Experimental Antigrav System Gravjet Array Gravjet Array Gravjet Array Concept Combat Aerolev Unit > --- UTILITY ---------- Concept Antigrav Storage Unit Spectral Analyzer Experimental Active Sensor Suite Concept Melee Reflex Suite Concept Core Analysis Suite Experimental Armor Integrity Analyzer Concept Cloak Mesh Concept Cloak Mesh Concept Core Shell Centrium Medium Armor Plating Graphene Brace > --- WEAPON ----------- Concept Plasma Driver Experimental Jetlance > --- INVENTORY -------- Quantum Reactor Quantum Reactor Gravjet Array Gravjet Array Concept Chromion Battery Concept NT7 Matterbank Concept NT7 Matterbank Concept Weapon Articulator Femtoactuators Femtoactuators Centrium Medium Armor Plating Graphene Brace Concept Impact Drone Bay Concept Impact Drone Bay High-powered Transdimensional Reconstructor Concept Lightning Penetrator Compact HERF Cannon Concept Plasma Driver Concept Miniperforator Concept Rapid Grenade Launcher Concept Smart ZDS Sigix Broadsword [Rating: 292] Favorites ----------- Power Improved Ion Engine Engine Improved Ion Engine Power Core Concept Zero-point Core Reactor Hybrid Graviton Reactor Propulsion Improved Treads Treads Improved Treads Leg Experimental VSS Leg Wheel Wheel Hover Unit Gravjet Array Flight Unit Cooled Impulse Thruster Utility Spectral Analyzer Device Graphene Brace Storage Huge Storage Unit Processor Spectral Analyzer Hackware Hacking Suite Protection Centrium Medium Armor Plating Weapon Heavy Assault Rifle Energy Gun Gamma Rifle Energy Cannon Concept Plasma Driver Ballistic Gun Heavy Assault Rifle Ballistic Cannon Concept Miniperforator Launcher Long-range Missile Launcher Impact Weapon Gravity Flail Slashing Weapon Power Sword Piercing Weapon Experimental Jetlance Special Melee Weapon Datajack Build | -11 -10 -10 -9 -9 -9 -9 -6 -6 -6 -5 -5 -5 -5 -4 -4 -4 -4 -4 -4 -4 -4 -3 -3 -3 -2 -2 -1 -1 -1 ------- Run | Yrd Mat Min Mat Sto Rec Scr Fac Was Fac Fac Upp Upp War Pro Fac Was Fac Ext Cet Arc Hub Res Qua Frg Res DSF Acc Com Ac0 Slots Evolved 18 | . . . 2 . . . 6 . . 2 . . . . 2 . . . . . . 2 . . 2 . 2 . . Power 2 | . . . . . . . . . . 1 . . . . . . . . . . . . . . . . 1 . . Propulsion 6 | . . . 1 . . . 2 . . . . . . . 1 . . . . . . 2 . . . . . . . Utility 10 | . . . 1 . . . 4 . . 1 . . . . 1 . . . . . . . . . 2 . 1 . . Weapon . | . . . . . . . . . . . . . . . . . . . . . . . . . . . . . . Parts Attached 297 | 3 18 2 9 13 2 10 23 2 2 12 . 1 13 . 6 . 9 6 2 . 3 10 13 108 2 . . 22 6 Power 33 | . 3 . . 3 1 . 3 . . 1 . . 1 . 1 . 1 1 . . 2 3 2 8 2 . . 1 . Engine 9 | . 3 . . 3 1 . 2 . . . . . . . . . . . . . . . . . . . . . . Core 9 | . . . . . . . 1 . . 1 . . 1 . . . 1 . . . . 1 . 3 1 . . . . Reactor 15 | . . . . . . . . . . . . . . . 1 . . 1 . . 2 2 2 5 1 . . 1 . Propulsion 68 | 2 3 . 5 4 . 6 5 . . 2 . . 2 . 1 . 1 1 . . 1 3 4 23 . . . 3 2 Treads 15 | 1 1 . 4 4 . 2 . . . . . . . . . . . . . . . . . 3 . . . . . Leg 6 | . . . . . . . . . . . . . . . . . . . . . . . . 6 . . . . . Wheel 8 | 1 2 . 1 . . 4 . . . . . . . . . . . . . . . . . . . . . . . Hover 16 | . . . . . . . . . . . . . . . . . . . . . . . . 11 . . . 3 2 Flight 23 | . . . . . . . 5 . . 2 . . 2 . 1 . 1 1 . . 1 3 4 3 . . . . . Utility 141 | 1 6 . 3 3 1 . 11 2 2 7 . 1 9 . 2 . 5 4 2 . . 3 6 54 . . . 16 3 Device 76 | 1 2 . . . . . 5 2 1 6 . 1 5 . . . 3 3 . . . 2 4 28 . . . 13 . Storage 9 | . 3 . 1 1 . . . . . . . . . . . . . . . . . . 1 3 . . . . . Processor 21 | . . . 1 . . . 2 . 1 . . . 3 . . . 1 1 . . . . 1 10 . . . 1 . Hackware 6 | . . . . 1 . . 1 . . 1 . . . . 2 . . . . . . 1 . . . . . . . Protection 29 | . 1 . 1 1 1 . 3 . . . . . 1 . . . 1 . 2 . . . . 13 . . . 2 3 Artifact . | . . . . . . . . . . . . . . . . . . . . . . . . . . . . . . Weapon 55 | . 6 2 1 3 . 4 4 . . 2 . . 1 . 2 . 2 . . . . 1 1 23 . . . 2 1 Energy Gun 5 | . . . . . . . . . . . . . 1 . . . . . . . . . . 3 . . . 1 . Energy Cannon 8 | . . . . 1 . . . . . 1 . . . . . . . . . . . 1 . 4 . . . 1 . Ballistic Gun 12 | . 4 1 1 2 . 1 . . . . . . . . . . . . . . . . . 3 . . . . . Ballistic Cannon 3 | . . . . . . . . . . . . . . . . . . . . . . . . 3 . . . . . Launcher 7 | . 1 1 . . . . 2 . . . . . . . . . . . . . . . . 3 . . . . . Special Weapon . | . . . . . . . . . . . . . . . . . . . . . . . . . . . . . . Impact Weapon 6 | . 1 . . . . . 1 . . . . . . . 1 . 2 . . . . . . 1 . . . . . Slashing Weapon 8 | . . . . . . 3 . . . 1 . . . . . . . . . . . . 1 3 . . . . . Piercing Weapon 4 | . . . . . . . . . . . . . . . . . . . . . . . . 3 . . . . 1 Special Melee Weapon 2 | . . . . . . . 1 . . . . . . . 1 . . . . . . . . . . . . . . Unidentified Prototypes 59 | . . . . 1 . . 2 . 1 2 . . 6 . 2 . . . 1 . 1 1 1 40 . . . 1 . Corrupted Parts 4 | . . . . . . . . 1 . . . . . . . . . . . . . . . 2 . . . . 1 System Corruption 29 | . . . . . . . . 4 . . . . . . . . . . . . . . . 13 . . . . 12 Parts Lost 35 | . . . 7 . . . 2 1 1 1 1 . . . 1 . . 1 1 . . . 2 10 . . . 1 6 Power 3 | . . . 1 . . . 1 . . . . . . . . . . . . . . . . 1 . . . . . Propulsion 11 | . . . 4 . . . . . 1 . . . . . . . . . . . . . 2 3 . . . . 1 Utility 16 | . . . 1 . . . . 1 . 1 1 . . . 1 . . 1 1 . . . . 6 . . . 1 2 Weapon 5 | . . . 1 . . . 1 . . . . . . . . . . . . . . . . . . . . . 3 Highest Loss Streak 6 | . . . 6 . . . 2 1 1 1 1 . . . 1 . . 1 1 . . . 2 2 . . . 1 2 To Critical Strikes . | . . . . . . . . . . . . . . . . . . . . . . . . . . . . . . Average Backups 15 | 6 15 20 18 22 24 24 4 4 4 4 5 5 4 5 4 5 5 4 5 5 5 4 8 15 20 20 19 20 18 Power . | 1 1 1 1 . . . . . . . 1 1 . . . 1 1 1 1 1 1 1 1 . 1 1 . 1 2 Propulsion 5 | 3 4 6 5 10 13 12 1 1 1 1 1 1 . 1 1 1 1 1 1 1 1 . . 2 2 2 2 3 3 Utility 4 | . 5 7 6 5 5 6 . 1 1 . . . . 1 . . . . 1 1 1 1 3 6 10 10 10 8 7 Weapon 4 | 1 4 5 5 5 5 4 1 1 1 2 3 3 2 2 2 2 2 2 2 2 2 2 3 5 6 6 6 6 4 Tool/Special . | . . . . . . . . . . . . . . . . . . . . . . . . . . . . . . Unused Backups 62 | 6 10 . 1 2 . 10 7 . . 3 . . . . 2 . . . 1 . 1 . 2 9 . . . 5 3 Power 9 | 1 1 . . . . . . . . . . . . . . . . . . . 1 . 1 2 . . . 2 1 Propulsion 17 | 1 3 . . 1 . 6 . . . . . . . . 2 . . . . . . . . 3 . . . . 1 Utility 21 | 1 2 . 1 1 . 4 3 . . 2 . . . . . . . . 1 . . . 1 2 . . . 2 1 Weapon 14 | 3 4 . . . . . 3 . . 1 . . . . . . . . . . . . . 2 . . . 1 . Tool/Special 1 | . . . . . . . 1 . . . . . . . . . . . . . . . . . . . . . . Average Slot Usage (%) 91 | . 100 100 94 99 100 99 96 88 79 83 82 84 87 88 84 89 91 93 93 94 94 94 88 82 81 82 80 83 77 Engine 5 | . 14 14 9 11 11 11 4 6 5 5 5 5 1 . . . . . . . . . . . . . . . . Core 2 | . . . . . . . . . . 4 5 5 8 11 9 5 5 4 5 5 4 . . 2 4 4 4 4 . Reactor 2 | . . . . . . . . . . . . . . . . 5 5 5 5 5 5 8 9 5 4 4 8 5 4 Treads 11 | . 14 14 17 33 33 28 . . . . . . . . . . . . . . . . . 2 . . . . . Leg 1 | . . . . . . . . . . . . . . . . . . . . . . . . 5 . . . . . Wheel 2 | . 14 14 13 . . 4 . . . . . . . . . . . . . . . . . . . . . . . Hover 2 | . . . . . . . . . . . . . . . . . . . . . . . . 4 21 21 20 20 20 Flight 10 | . . . . . . . 32 33 32 25 23 23 23 23 25 26 26 26 26 26 26 32 31 12 . . . . . Device 13 | . 11 13 4 4 1 7 21 15 13 17 23 25 27 23 16 15 20 20 19 21 21 19 19 13 17 17 16 18 20 Storage 6 | . 14 14 13 11 11 11 . . . . . . . . . . . . . . . . 3 4 4 4 4 4 4 Processor 10 | . . . 6 11 11 3 9 13 13 11 11 11 11 11 10 10 10 10 10 10 10 9 9 17 17 17 16 16 13 Hackware 2 | . . . . 3 . . 5 6 6 10 5 5 5 5 10 15 10 10 10 10 10 8 4 . . . . . . Protection 5 | . 1 1 7 2 9 11 5 . . . . . . 5 5 5 4 4 5 5 5 4 4 4 3 4 4 7 9 Ballistic Gun 6 | . 22 25 18 19 18 11 1 . . . . . . . . . . . . . . . . 1 . . . . . Impact Weapon 2 | . 3 . 1 1 3 . . 6 2 . . . . . . . 6 9 9 10 10 8 . . . . . . . Slashing Weapon 3 | . . . . . . 10 4 . . 4 5 5 4 5 4 5 1 . . . . . 3 2 . . . . . Peak Build Rating 292 | 7 12 12 14 23 19 24 55 61 61 85 81 79 103 96 116 116 131 132 139 139 141 161 179 267 272 271 278 292 263 Average Rating 110 | 6 8 11 12 18 18 22 49 56 55 74 75 76 91 95 108 116 122 129 134 139 139 157 171 223 270 269 277 273 253 On Entrance 109 | 6 7 12 11 9 19 19 22 54 54 54 81 75 79 95 96 116 116 131 132 139 139 140 161 179 254 271 269 278 257 Avg Prop Armor Cover (%) 6 | 5 10 11 9 . . 9 1 . 2 2 . . 2 . 3 . . . . . . 2 1 12 . . 3 2 . Naked Turns . | . . . . . . . . . . . . . . . . . . . . . . . . . . . . . . Heaviest Build 122 | 12 54 54 55 101 95 97 25 28 25 31 27 30 35 33 39 39 41 42 43 40 40 47 56 97 85 85 105 122 122 Greatest Support 300 | 20 20 10 60 69 69 69 25 25 25 31 31 31 35 35 42 42 51 52 43 43 54 71 71 300 124 124 106 119 125 Greatest Overweight (x) 9 | . 5 5 5 1 1 9 1 1 4 . . . 1 . . . . . . . 1 . . 3 . . . 1 1 Average Overweight (x) . | . 3 5 2 . 1 1 . . . . . . . . . . . . . . . . . . . . . . . Largest Inventory Capacity 25 | 8 20 20 20 25 25 25 25 5 5 5 5 5 5 5 5 5 5 5 5 5 5 5 10 25 25 25 25 25 25 Average Capacity 17 | 8 16 20 20 23 25 25 5 5 5 5 5 5 5 5 5 5 5 5 5 5 5 5 9 17 25 25 25 25 25 Most Carried 25 | 8 20 20 20 25 25 25 19 5 5 5 5 5 5 5 5 5 5 5 5 5 5 5 10 25 25 23 23 25 25 Average Carried 16 | 6 15 20 18 23 24 24 5 5 4 4 5 5 4 4 4 5 4 4 5 5 5 4 9 17 23 23 22 23 21 Final Capacity 25 | 8 20 20 20 25 25 25 5 5 5 5 5 5 5 5 5 5 5 5 5 5 5 5 10 25 25 25 25 25 25 Final Carried 25 | 7 20 20 16 25 25 20 5 5 3 5 5 5 5 5 5 5 5 5 5 5 5 5 10 25 23 23 23 25 19 Class Distribution -------------------- 38% | Mutant 12% | Scavenger-Sprinter 6% | Hacker-Scout 5% | Hacker-Ninja 5% | Scavenger-Mutant 5% | Ninja 4% | Scout 4% | Scavenger-Gladiator 3% | Commander-Scout 3% | Scavenger-Ninja Dominant Class ---------------- Mutant | -10/Materials Mutant | -10/Mines Mutant | -9/Materials Mutant | -9/Storage Mutant | -9/Recycling Mutant | -9/Scraptown Scout | -6/Factory Assassin | -6/Waste Scout | -6/Factory Hacker-Scout | -5/Factory Scout | -5/Upper Caves Scout | -5/Upper Caves Ninja | -5/Warlord Ninja | -4/Proximity Caves Hacker-Sprinter | -4/Factory Hacker-Sprinter | -4/Waste Hacker-Ninja | -4/Factory Commander-Scout | -4/Extension Commander-Scout | -4/Cetus Commander-Scout | -4/Archives Hacker-Scout | -4/Hub_04(d) Hacker-Scout | -3/Research Hacker-Ninja | -3/Quarantine Scavenger-Sprinter | -3/Protoforge Scavenger-Ninja | -2/Research Scavenger-Ninja | -2/DSF Scavenger-Ninja | -1/Access Scavenger-Sprinter | -1/Command Scavenger-Sprinter | -1/Access_0 Resources | -11 -10 -10 -9 -9 -9 -9 -6 -6 -6 -5 -5 -5 -5 -4 -4 -4 -4 -4 -4 -4 -4 -3 -3 -3 -2 -2 -1 -1 -1 ----------- Run | Yrd Mat Min Mat Sto Rec Scr Fac Was Fac Fac Upp Upp War Pro Fac Was Fac Ext Cet Arc Hub Res Qua Frg Res DSF Acc Com Ac0 Matter Collected 12724 | 282 547 188 293 391 384 260 355 211 . 291 . 5 240 . 48 . 47 303 186 . 89 171 216 6294 . . . 1475 448 Remotely 232 | . . . . . . . . . . . . . . . . . . . . . . . . 202 . . . 30 . Salvage Created 11500 | 128 531 171 438 345 311 . 280 . 81 146 . . . 104 98 . 47 741 67 . 457 161 922 3660 . . 43 1706 1063 Parts 491 | 11 19 8 22 22 17 . 7 . 1 5 . . . 3 2 . . 14 3 . 17 3 54 196 . . 2 32 53 Haulers Intercepted 7 | . 2 . 1 . . . 1 . 1 . . . . . . . . . . . 2 . . . . . . . . Recyclers Shooed 6 | 1 1 . 2 . 2 . . . . . . . . . . . . . . . . . . . . . . . . Parts Field Recycled . | . . . . . . . . . . . . . . . . . . . . . . . . . . . . . . Retrieved Matter . | . . . . . . . . . . . . . . . . . . . . . . . . . . . . . . Parts Self-Destructed 2 | . . . . . . . . . . . . . . 2 . . . . . . . . . . . . . . . Prevented 1 | . . . . . . . . . . . 1 . . . . . . . . . . . . . . . . . . Parts Restored 11 | . . . . . . . . . . . . . . . . . . . . . . . . 11 . . . . . Faulty 11 | . . . . . . . . . . . . . . . . . . . . . . . . 11 . . . . . Kills | -11 -10 -10 -9 -9 -9 -9 -6 -6 -6 -5 -5 -5 -5 -4 -4 -4 -4 -4 -4 -4 -4 -3 -3 -3 -2 -2 -1 -1 -1 ------- Run | Yrd Mat Min Mat Sto Rec Scr Fac Was Fac Fac Upp Upp War Pro Fac Was Fac Ext Cet Arc Hub Res Qua Frg Res DSF Acc Com Ac0 Combat Hostiles Destroyed 145 | . 6 4 13 10 4 . 1 . . . . . . 2 1 . . 10 . . 4 1 9 55 . . . 12 13 Melee 53 | . . . . . . . 1 . . . . . . 2 1 . . 2 . . . . 9 24 . . . 4 10 Guns 35 | . 5 3 3 9 4 . . . . . . . . . . . . . . . . . . 11 . . . . . Cannons 11 | . . . . . . . . . . . . . . . . . . . . . . . . 7 . . . 4 . AOE 27 | . 1 1 10 . . . . . . . . . . . . . . 5 . . 2 . . 3 . . . 3 2 Classes Destroyed 23 | 2 5 1 1 . . . 1 . . . . . . 2 . . . 1 1 . 1 1 . 5 . . . 2 . Worker 3 | . 1 . . . . . . . . . . . . . . . . . . . 1 1 . . . . . . . Builder 4 | . 1 . 1 . . . . . . . . . . . . . . . . . 1 . . 1 . . . . . Tunneler 3 | 3 . . . . . . . . . . . . . . . . . . . . . . . . . . . . . Hauler 7 | . 2 . 1 . . . 1 . 1 . . . . . . . . . . . 2 . . . . . . . . Recycler 14 | 1 2 1 2 . 1 . 1 . . 1 . . . . . . . 2 . . 1 . 1 . . . . 1 . Minesweeper 1 | . . . . . . . . . . . . . . 1 . . . . . . . . . . . . . . . Mechanic 1 | . . . . . . . . . . . . . . . . . . . . . . . . . . . . 1 . Operator 5 | . . . . . . . . . . . . . . . . . . . . . . 1 2 1 . . . 1 . Drone 12 | . . . . . . . . . . . . . . 1 . . . . . . . . . 11 . . . . . Watcher 12 | . 1 . . . . . . . . . . . . . 1 . 1 1 1 . . 1 3 1 . . 1 1 . Swarmer 18 | . . 2 7 4 . . . . . . . . . . . . . 5 . . . . . . . . . . . Cutter 2 | . . . . . . . . . . . . . . . . . . . . . 2 . . . . . . . . Grunt 27 | . 6 2 3 3 . . . . . . . . . 1 . . . 2 . . 2 1 4 . . . . 3 . Brawler 1 | . . . . . . . . . . . . . . . . . . . . . . . . . . . . 1 . Researcher 7 | . . . . . . . . . . . . . . . . . . . . . . . . 7 . . . . . Sentry 22 | . . . 3 3 4 . . . . . . . . . . . . 2 . . . . . 10 . . . . . Specialist 1 | . . . . . . . . . . . . . . . . . . . . . . . . 1 . . . . . Hunter 6 | . . . . . . . . . . . . . . . . . . . . . . . . 5 . . . 1 . Programmer 11 | . . . . . . . 1 . . . . . . . 1 . . . . . . . 5 1 . . . 3 . Behemoth 1 | . . . . . . . . . . . . . . . . . . 1 . . . . . . . . . . . Enhanced Grunt 6 | . . . . . . . . . . . . . . . . . . . . . . . . . . . . . 6 Enhanced Sentry 1 | . . . . . . . . . . . . . . . . . . . . . . . . . . . . . 1 Enhanced Hunter 2 | . . . . . . . . . . . . . . . . . . . . . . . . . . . . . 2 Hotshot 1 | . . . . . . . . . . . . . . . . . . . . . . . . 1 . . . . . Decapitator 4 | . . . . . . . . . . . . . . . . . . . . . . . . 4 . . . . . Immortal 7 | . . . . . . . . . . . . . . . . . . . . . . . . 7 . . . . . Combat Programmer 2 | . . . . . . . . . . . . . . . . . . . . . . . . . . . . 2 . Alpha 7 2 | . . . . . . . . . . . . . . . . . . . . . . . . 2 . . . . . V-Series 13 | . . . . . . . . . . . . . . . . . . . . . . . . 13 . . . . . Butcher 1 | . . . . . . . . . . . . . . . . . . . 1 . . . . . . . . . . Best Kill Streak 11 | 2 3 2 9 4 1 . 1 . 1 1 . . . 2 1 . 1 6 1 . 3 3 6 4 . . 1 11 3 Combat Bots Only 9 | . 2 2 6 4 1 . 1 . . . . . . 1 1 . . 6 . . 2 1 5 3 . . . 9 3 Max Kills in Single Turn 3 | 1 1 1 3 1 1 . 1 . 1 1 . . . 1 1 . 1 3 2 . 3 1 1 2 . . 1 3 2 Gunslinging . | . . . . . . . . . . . . . . . . . . . . . . . . . . . . . . Exploded 3 | . 1 1 3 . . . . . . . . . . . . . . 3 . . 2 . . 2 . . . 3 2 Melee 1 | . . . . . . . 1 . . . . . . 1 1 . . 1 . . . . 1 1 . . . 1 1 Uniques/NPCs Destroyed 6 | . . . . . . . . . . . . . . . . . . . . . . . . . . . . 2 4 MAIN.C Shell (-1/Command) MAIN.C (-1/Command) A8 (-1/Access_0) A6 (-1/Access_0) A5 (-1/Access_0) Architect (-1/Access_0) Combat | -11 -10 -10 -9 -9 -9 -9 -6 -6 -6 -5 -5 -5 -5 -4 -4 -4 -4 -4 -4 -4 -4 -3 -3 -3 -2 -2 -1 -1 -1 -------- Run | Yrd Mat Min Mat Sto Rec Scr Fac Was Fac Fac Upp Upp War Pro Fac Was Fac Ext Cet Arc Hub Res Qua Frg Res DSF Acc Com Ac0 Hostile Shots Fired 1127 | . 34 22 100 46 16 . 15 . . 7 6 . . 4 22 . 10 14 6 . 15 . 40 378 . . . 58 334 Missed 480 | . 10 6 28 12 3 . 9 . . 5 4 . . 3 12 . 3 8 3 . 8 . 11 117 . . . 28 210 Hits 647 | . 24 16 72 34 13 . 6 . . 2 2 . . 1 10 . 7 6 3 . 7 . 29 261 . . . 30 124 Melee 29 | . . . . . . . . . . . 1 . . . . . . . . . . . . 27 . . . . 1 Projectile 618 | . 24 16 72 34 13 . 6 . . 2 1 . . 1 10 . 7 6 3 . 7 . 29 234 . . . 30 123 AOE 5 | . . . . . . . . . . . . . . . . . . . . . . . . 5 . . . . . Critical Strikes 48 | . 1 2 5 3 1 . . . . . . . . . . . 1 . 1 . 2 . 3 24 . . . . 5 Actively Blocked 23 | . . . . . . . . . . . . . . . . . . . . . 2 . . 17 . . . . 4 Part Disruptions 5 | . . . . . . . . . . . . . . . . . . . . . . . . 2 . . . . 3 Damage Taken 18179 | . 328 184 956 446 194 . 345 26 . 41 71 . . 21 143 . 151 202 116 . 154 . 1026 8511 176 . . 1070 4018 Core 1626 | . 66 45 119 83 29 . 29 . . 23 . . . . 20 . 86 26 . . . . 100 594 35 . . 200 171 Absorbed by Shields 909 | . . . . . . . . . . . . . . . . . . . 36 . . . . 873 . . . . . Reduced by Siege Mode 382 | . . . . . . . . . . . . . . . . . . . . . . . . 382 . . . . . Redirected to Shielding 429 | . . . . . . . . . . . . . . . 12 . . . . . . . . 112 . . . 110 195 Ignored by Resistances 158 | . . . . . . . . . . . . . . . . . . . . . . . . 25 23 . . 63 47 Regen/Repaired (Parts) 2796 | . 68 . . 101 . . . . . . . . . . 21 . . . . . . . 321 1864 . . . 363 58 Core Remaining (%) 76 | 100 . 55 . . . 42 . . 96 . . . . 97 . . . . . . 88 . . 46 . 97 . . 65 Volleys Fired 349 | 13 31 12 31 19 18 . . . 1 . . . 1 . 3 . . 3 5 . 1 3 5 154 1 . 4 36 8 Largest 2 | 2 2 2 2 2 2 . . . 1 . . . 1 . 1 . . 1 1 . 1 1 1 2 1 . 1 1 1 Hottest 280 | 40 40 40 40 123 43 . . . 50 . . . 90 . 90 . . 43 43 . 43 105 105 280 140 . 140 140 75 Shots Fired 482 | 26 59 22 48 38 36 . . . 1 . . . 1 . 3 . . 3 5 . 1 3 5 183 1 . 4 36 7 Gun 272 | 26 57 20 35 36 36 . . . . . . . . . . . . . . . . . . 42 . . . 17 3 Cannon 173 | . . . . 2 . . . . . . . . 1 . 3 . . . . . . 1 5 137 1 . 4 17 2 Launcher 37 | . 2 2 13 . . . . . 1 . . . . . . . . 3 5 . 1 2 . 4 . . . 2 2 Special . | . . . . . . . . . . . . . . . . . . . . . . . . . . . . . . Kinetic 280 | 26 57 20 35 36 36 . . . . . . . . . . . . . . . . . . 63 . . . 5 2 Thermal 91 | . . . . 2 . . . . . . . . 1 . 3 . . . . . . 1 5 62 1 . 4 12 . Explosive 36 | . 2 2 13 . . . . . . . . . . . . . . 3 5 . 1 2 . 4 . . . 2 2 Electromagnetic 75 | . . . . . . . . . 1 . . . . . . . . . . . . . . 54 . . . 17 3 Robot Hit Streak 23 | 5 17 5 10 13 23 . . . . . . . . . . . . . 2 . . . . 19 3 . 1 22 13 Robot Miss Streak 8 | 4 2 2 4 2 2 . . . . . . . . . . . . . 1 . . . . 8 . . 1 2 2 Penetration Max 1 | . . . . . . . . . . . . . . . . . . . . . . . . 1 . . . . 1 Secondary Targets 2 | . . . 1 1 . . . . . . . . . . . . . . . . . . . . . . . . . Max Gunslinging Chain 1 | . . . 1 1 . . . . . . . . . . . . . . . . . . . . . . . . . Shots Hit Robots 625 | 12 48 12 28 37 34 . 8 . 1 1 . . . 5 6 . 3 20 2 . 10 8 28 206 1 . 1 51 103 Core Hits 347 | 6 19 7 22 13 9 . 2 . . . . . . 2 2 . . 10 12 . 8 1 13 113 . . 1 39 68 Critical Kills 14 | 1 1 . 1 . . . . . . . . . . . . . . 1 . . . . . 6 . . . 4 . Critical Parts Destroyed 18 | . 1 . . 1 . . 1 . . . . . . . . . 1 6 . . 1 2 . 3 . . . 2 . Critical Strikes 107 | 1 2 . 1 1 . . 1 . . . . . . . 1 . 1 7 . . 1 3 1 28 . . . 22 37 Meltdown 3 | . . . . . . . . . . . . . . . . . . . . . . . . 2 . . . 1 . Destroy 13 | 1 . . . . . . . . . . . . . . . . . . . . . . . 7 . . . 5 . Blast 4 | . . . . . . . . . . . . . . . . . . . . . . . . 4 . . . . . Smash 17 | . 2 . 1 1 . . 1 . . . . . . . . . 1 7 . . 1 3 . . . . . . . Sever 10 | . . . . . . . . . . . . . . . 1 . . . . . . . 1 6 . . . . 2 Impale 60 | . . . . . . . . . . . . . . . . . . . . . . . . 9 . . . 16 35 Melee Attacks 725 | . 14 1 4 8 2 . 37 3 7 27 . 4 . 17 32 . 19 44 1 . 55 30 66 192 3 . 11 40 108 Impact 192 | . 14 1 4 8 2 . 3 3 7 . . . . . . . 17 44 1 . 55 30 3 . . . . . . Slashing 364 | . . . . . . . 33 . . 27 . 4 . 17 31 . 2 . . . . . 63 166 . . . . 21 Piercing 167 | . . . . . . . . . . . . . . . . . . . . . . . . 26 3 . 11 40 87 Sneak Attacks 39 | . 5 1 2 1 2 . 3 . 1 1 . . . 2 1 . . 3 . . 4 1 2 9 . . . 1 . Combat Hostiles 4 | . . . . . . . . . . . . . . 1 . . . 1 . . . 1 1 . . . . . . Follow-up Attacks 15 | . . . . . . . . . . . . . . . . . 1 5 . . 3 2 . . . . . . 4 Martial Strikes 40 | . . . . . . . . . . . . . . . . . . . . . . . . 29 . . . 4 7 Damage Inflicted 36932 | 132 859 335 1499 644 573 . 488 . 149 93 . . . 366 301 . 240 1790 474 . 1225 724 2585 14512 82 . 79 3632 6150 Guns 3369 | 132 515 117 321 423 462 . . . . . . . . . . . . . . . . . . 1035 . . . 339 25 Cannons 4512 | . . . . 63 . . . . . . . . . . . . . . . . . . . 4035 82 . 79 228 25 Explosions 5416 | . 72 156 1059 . . . . . 22 . . . . . . . . 351 474 . 175 33 . 860 . . . 1470 744 Melee 23626 | . 272 62 119 158 102 . 488 . 127 93 . . . 366 301 . 240 1439 . . 1050 691 2585 8582 . . . 1595 5356 Ramming 9 | . . . . . 9 . . . . . . . . . . . . . . . . . . . . . . . . Kinetic 4168 | 132 515 117 321 423 462 . . . . . . . . . . . . . . . . . . 2120 . . . 53 25 Thermal 2341 | . . . . 63 . . . . . . . . . . . . . . . . . . . 1942 82 . 79 175 . Explosive 5394 | . 72 156 1059 . . . . . . . . . . . . . . 351 474 . 175 33 . 860 . . . 1470 744 Electromagnetic 1394 | . . . . . . . . . 22 . . . . . . . . . . . . . . 1008 . . . 339 25 Impact 4406 | . 272 62 119 158 102 . 146 . 127 . . . . . . . 240 1439 . . 1050 691 . . . . . . . Slashing 12799 | . . . . . . . 342 . . 93 . . . 366 301 . . . . . . . 2585 7989 . . . . 1123 Piercing 6421 | . . . . . . . . . . . . . . . . . . . . . . . . 593 . . . 1595 4233 Highest Corruption 41 | . . . . . . . 1 13 16 . 1 1 . . 1 8 8 8 8 8 8 . 13 41 . . . . 13 Average Corruption 15 | . . . . . . . 1 11 13 . 1 1 . . 1 2 8 8 8 8 8 . 5 23 . . . . 12 Corruption Purged 1 | . . . . . . . . . . . . 1 . . . . . . . . . . . . . . . . . Corruption Blocked . | . . . . . . . . . . . . . . . . . . . . . . . . . . . . . . Effects 287 | . . . . . . . 3 6 15 . . 1 . . . . 7 30 12 3 8 . 6 181 . . . . 15 Message Errors 76 | . . . . . . . . 1 3 . . . . . . . 2 12 2 . 5 . 1 48 . . . . 2 Matter Fused 61 | . . . . . . . . 1 5 . . . . . . . . 8 3 . 1 . 1 40 . . . . 2 Heat Flow Errors 30 | . . . . . . . 1 2 3 . . . . . . . . 3 3 . . . . 16 . . . . 2 Energy Discharges 32 | . . . . . . . 1 . 1 . . . . . . . 1 3 1 . . . 2 20 . . . . 3 Parts Rejected 3 | . . . . . . . . . . . . . . . . . . . . . . . 1 1 . . . . 1 Parts Fused 7 | . . . . . . . . . . . . . . . . . 2 . . 1 . . . 3 . . . . 1 Data Loss (minor) 34 | . . . . . . . . . 2 . . 1 . . . . 2 3 3 2 1 . . 18 . . . . 2 Data Loss (major) 12 | . . . . . . . 1 1 1 . . . . . . . . . . . 1 . . 8 . . . . . Alerts 10 | . . . . . . . . . . . . . . . . . . 1 . . . . . 9 . . . . . Misdirections 14 | . . . . . . . . 1 . . . . . . . . . . . . . . 1 11 . . . . 1 Weapon Failures 8 | . . . . . . . . . . . . . . . . . . . . . . . . 7 . . . . 1 Overload Shots . | . . . . . . . . . . . . . . . . . . . . . . . . . . . . . . Overflow Damage 4404 | . 124 8 69 40 . . 194 . 57 63 . . . 138 33 . 163 722 . . 277 310 527 1247 27 . . 310 95 Projectiles 238 | . . . . . . . . . . . . . . . . . . . . . . . . 191 27 . . 20 . Explosions 280 | . . 8 69 . . . . . . . . . . . . . . . . . . . . 18 . . . 185 . Melee 3886 | . 124 . . 40 . . 194 . 57 63 . . . 138 33 . 163 722 . . 277 310 527 1038 . . . 105 95 Knockbacks 27 | . 1 . . 1 . . 1 . . . . . . . . . 2 2 . . 2 3 . 12 . . . . 3 Impact 12 | . 1 . . 1 . . 1 . . . . . . . . . 2 2 . . 2 3 . . . . . . . Kinetic 14 | . . . . . . . . . . . . . . . . . . . . . . . . 12 . . . . 2 Secondary 1 | . . . . . . . . . . . . . . . . . . . . . . . . . . . . . 1 Self-Inflicted Damage 248 | . 13 . 51 . . . . . . . . . . . . . . . 51 . . . . 133 . . . . . Shots 8 | . 1 . 2 . . . . . . . . . . . . . . . 1 . . . . 4 . . . . . Rammed 1 | . . . . . 1 . . . . . . . . . . . . . . . . . . . . . . . . Targets Rammed 1 | . . . . . 1 . . . . . . . . . . . . . . . . . . . . . . . . Kicked . | . . . . . . . . . . . . . . . . . . . . . . . . . . . . . . Crushed . | . . . . . . . . . . . . . . . . . . . . . . . . . . . . . . Highest Temperature 400 | . 24 36 24 141 22 . 242 142 178 6 . . 50 . 84 16 205 231 400 6 113 205 128 371 98 . 194 244 175 Average Temperature 57 | . 6 19 10 75 7 . 136 80 79 4 . . 20 . 16 7 38 35 73 2 6 82 35 85 35 . 98 63 92 Received Heat Transfer 1812 | . 198 108 432 228 81 . 18 . . 9 9 . . 12 . . 9 39 . . 30 . 64 413 . . . 72 90 Effects 2 | . . . . . . . . . . . . . . . . . . . 1 . . . . . . . . 1 . Energy Bleed 1 | . . . . . . . . . . . . . . . . . . . . . . . . . . . . 1 . Damage (minor) 1 | . . . . . . . . . . . . . . . . . . . 1 . . . . . . . . . . Siege Activations 2 | . . . . . . . . . . . . . . . . . . . . . . . . 2 . . . . . Total Turns 69 | . . . . . . . . . . . . . . . . . . . . . . . . 69 . . . . . Longest Duration 41 | . . . . . . . . . . . . . . . . . . . . . . . . 41 . . . . . Martial Activations . | . . . . . . . . . . . . . . . . . . . . . . . . . . . . . . Shielding Activations . | . . . . . . . . . . . . . . . . . . . . . . . . . . . . . . Robots Disrupted 1 | . . . . . . . . . . . . . . . . . . . . . . . . 1 . . . . . Combat Hostiles 1 | . . . . . . . . . . . . . . . . . . . . . . . . 1 . . . . . Robots Corrupted 24 | . 3 . . 1 . . 1 . 1 . . . . . . . 1 4 . . 2 3 . 7 . . . 1 . Combat Hostiles 15 | . . . . 1 . . . . . . . . . . . . . 3 . . 2 1 . 7 . . . 1 . Parts Fried 52 | . 8 . . 2 . . 2 . 1 . . . . . . . 1 9 . . 4 4 . 15 . . . 4 2 Impact Corruptions 43 | . 4 . . 2 . . 1 . 1 . . . . . . . 4 14 . . 8 9 . . . . . . . Robots Melted 3 | . . . . . . . . . . . . . . . . . . . . . . . . 2 . . . 1 . Combat Hostiles 1 | . . . . . . . . . . . . . . . . . . . . . . . . 1 . . . . . Parts Melted 13 | . . . . . . . . . . . . . . . . . . 1 . . . . . 7 . . 1 4 . Heat Transferred 1762 | . . . . 75 . . . . . . . . . . . . . . . . . . . 1487 50 . 50 100 . Parts Sabotaged . | . . . . . . . . . . . . . . . . . . . . . . . . . . . . . . Parts Stolen . | . . . . . . . . . . . . . . . . . . . . . . . . . . . . . . Parts Stripped . | . . . . . . . . . . . . . . . . . . . . . . . . . . . . . . Power Chain Reactions . | . . . . . . . . . . . . . . . . . . . . . . . . . . . . . . Alert | -11 -10 -10 -9 -9 -9 -9 -6 -6 -6 -5 -5 -5 -5 -4 -4 -4 -4 -4 -4 -4 -4 -3 -3 -3 -2 -2 -1 -1 -1 ------- Run | Yrd Mat Min Mat Sto Rec Scr Fac Was Fac Fac Upp Upp War Pro Fac Was Fac Ext Cet Arc Hub Res Qua Frg Res DSF Acc Com Ac0 Maximum Alert Level 5 | . . . 1 . . . . . . . . . . . . . . 2 2 1 2 1 1 5 3 3 2 3 . Low Security (%) 54 | 100 100 100 66 100 100 . 100 100 100 100 . . . . 100 100 100 70 . . 5 1 54 12 . . . . . Level 1 12 | . . . 33 . . . . . . . . . . . . . . 16 8 100 30 98 45 14 . . . 8 . Level 2 10 | . . . . . . . . . . . . . . . . . . 12 91 . 63 . . 16 . . 100 18 . Level 3 16 | . . . . . . . . . . . . . . . . . . . . . . . . 33 100 100 . 72 . Level 4 5 | . . . . . . . . . . . . . . . . . . . . . . . . 20 . . . . . Level 5 . | . . . . . . . . . . . . . . . . . . . . . . . . 1 . . . . . High Security . | . . . . . . . . . . . . . . . . . . . . . . . . . . . . . . Max Security . | . . . . . . . . . . . . . . . . . . . . . . . . . . . . . . Peak Influence 1663 | 10 77 71 296 177 54 . 37 24 28 59 . . . . 162 38 41 460 620 314 689 367 297 1663 1015 725 517 805 . Initial 935 | . . 12 20 114 28 . . 2 . . . . . . 150 38 26 11 233 224 109 361 137 81 935 725 434 325 . Average 303 | . 15 33 137 81 7 . 7 4 2 14 . . . . 126 38 17 130 501 234 480 249 201 762 965 725 460 509 . Influence Increases 9891 | 20 321 262 448 304 309 . 210 24 71 177 90 . . 30 309 . 94 1080 527 120 940 343 449 2512 112 . 185 826 128 Destroy 0b10 Robot/C 3500 | . 120 180 260 200 80 . 20 . . . . . . 20 20 . . 480 160 60 340 20 180 1120 . . . 240 . Destroy 0b10 Robot/NC 355 | 20 35 5 20 . 5 . 10 . 5 5 . . . 10 5 . 5 20 10 . 30 15 30 90 . . 5 30 . Destroy Leader 448 | . 36 30 62 50 . . 12 . 2 . . . . . 12 . 2 44 . . 64 2 36 62 . . 2 32 . Allied During Kill 835 | . . 6 . . . . . . . . . . . . . . . 275 170 60 313 . . 7 . . . 4 . Successful Hack 530 | . 40 . 13 8 14 . 53 . 43 32 . . . . 53 . 26 60 . . 16 28 24 29 . . 36 55 . Select Force Hacks 300 | . 60 . . . 210 . 30 . . . . . . . . . . . . . . . . . . . . . . Disable Machine 855 | . 15 . 30 15 . . 15 . . 15 . . . . . . 15 75 15 . 15 30 90 420 . . . 45 60 Anti-Garrison Action 200 | . . . . . . . . . . . . . . . . . . . . . . . . 200 . . . . . Destroy Structure 1243 | . 15 26 48 1 . . 25 24 6 50 . . . . 54 . 16 126 142 . 132 68 44 284 12 . 42 75 53 Advance Influence 150 | . . . . . . . . . . . . . . . 150 . . . . . . . . . . . . . . Partial Spotted 255 | . . . . . . . 30 . . . . . . . 15 . 15 . . . 15 15 45 105 . . . . 15 Lose Combat Pursuer 720 | . . 15 15 30 . . 15 . 15 75 90 . . . . . 15 . 30 . 15 165 . 195 . . . 45 . Active Sensor Use 500 | . . . . . . . . . . . . . . . . . . . . . . . . . 100 . 100 300 . Influence Decreases 9823 | 20 288 242 230 500 384 . 203 31 71 139 65 63 . 30 200 71 108 686 385 366 565 788 547 995 808 242 401 488 907 Entered New Map 3905 | . . 21 33 157 47 . . 5 . . 15 13 . . . 71 12 13 185 336 205 328 107 65 728 242 291 184 847 Time Decay 4642 | 20 278 221 127 343 337 . 203 16 65 129 40 50 . 30 190 . 96 363 150 30 160 310 270 770 80 . 110 254 . Lost Part 276 | . . . 70 . . . . 10 . 10 10 . . . 10 . . 6 10 . . . 20 100 . . . 10 20 Lost Ally 547 | . 10 . . . . . . . 6 . . . . . . . . 151 40 . 200 . . 60 . . . 40 40 Purge Threat 453 | . . . . . . . . . . . . . . . . . . 153 . . . 150 150 . . . . . . Squads Dispatched 63 | . 3 . 1 1 . . 7 . 5 2 . . . . 2 . 2 3 . . 8 2 2 12 1 1 2 9 . Investigation 30 | . 3 . . . . . 5 . 3 1 . . . . 2 . 1 2 . . 2 1 . 5 1 . 1 3 . Extermination 11 | . . . . . . . 1 . 1 1 . . . . . . 1 . . . 1 . 2 2 . . 1 1 . Reinforcement 18 | . . . 1 1 . . 1 . 1 . . . . . . . . 1 . . 5 1 . 5 . 1 . 1 . Assault 4 | . . . . . . . . . . . . . . . . . . . . . . . . . . . . 4 . Garrison . | . . . . . . . . . . . . . . . . . . . . . . . . . . . . . . Intercept . | . . . . . . . . . . . . . . . . . . . . . . . . . . . . . . Searches Triggered . | . . . . . . . . . . . . . . . . . . . . . . . . . . . . . . Construction Impeded 3 | . . . 1 . . . . . . . . . . . . . . 1 . . 1 . . . . . . . . Haulers Reinforced 2 | . . . . . . . . . 1 . . . . . . . . . . . 1 . . . . . . . . Active Scanning Responses 5 | . . . . . . . . . . . . . . . . . . . . . . . . . 1 . 1 3 . Cargo Convoy Interrupts . | . . . . . . . . . . . . . . . . . . . . . . . . . . . . . . Stealth | -11 -10 -10 -9 -9 -9 -9 -6 -6 -6 -5 -5 -5 -5 -4 -4 -4 -4 -4 -4 -4 -4 -3 -3 -3 -2 -2 -1 -1 -1 --------- Run | Yrd Mat Min Mat Sto Rec Scr Fac Was Fac Fac Upp Upp War Pro Fac Was Fac Ext Cet Arc Hub Res Qua Frg Res DSF Acc Com Ac0 Distress Signals 54 | . 1 . 4 1 . . . . . . . . 1 . . . 1 . 1 . 4 5 1 14 1 . . 20 . Communications Jammed 1 | . . . . . . . . . . . . . . . . . . . . . . . 1 . . . . . . Distress Signals 1 | . . . . . . . . . . . . . . . . . . . . . . . 1 . . . . . . Times Spotted 352 | . 12 10 21 13 4 . 4 7 1 9 6 . 14 4 8 4 6 24 9 . 25 12 17 87 1 . 1 22 31 Peak Tracking Total 9 | . 4 2 8 6 1 . 2 6 1 4 6 . 4 4 3 4 4 6 5 . 7 4 3 9 2 . 2 7 6 Tactical Retreats 35 | . . 1 1 2 . . 2 1 1 3 2 . . . 3 . 2 1 1 . 1 5 . 5 . . . 3 1 ECM-based Alert Blocks 8 | . . . . . . . 1 . . . . . . . 5 . 1 1 . . . . . . . . . . . Traps | -11 -10 -10 -9 -9 -9 -9 -6 -6 -6 -5 -5 -5 -5 -4 -4 -4 -4 -4 -4 -4 -4 -3 -3 -3 -2 -2 -1 -1 -1 ------- Run | Yrd Mat Min Mat Sto Rec Scr Fac Was Fac Fac Upp Upp War Pro Fac Was Fac Ext Cet Arc Hub Res Qua Frg Res DSF Acc Com Ac0 Traps Triggered 28 | . . . . . . . 2 . 2 . . . . . 1 . . 3 . . . . 1 18 1 . . . . Indirectly . | . . . . . . . . . . . . . . . . . . . . . . . . . . . . . . Trap Hack Attempts . | . . . . . . . . . . . . . . . . . . . . . . . . . . . . . . Triggered . | . . . . . . . . . . . . . . . . . . . . . . . . . . . . . . Disarmed . | . . . . . . . . . . . . . . . . . . . . . . . . . . . . . . Reprogrammed 5 | . . . . . . . . . . . . . . . . . . 5 . . . . . . . . . . . Reused . | . . . . . . . . . . . . . . . . . . . . . . . . . . . . . . Traps Extracted . | . . . . . . . . . . . . . . . . . . . . . . . . . . . . . . Installed . | . . . . . . . . . . . . . . . . . . . . . . . . . . . . . . Triggered . | . . . . . . . . . . . . . . . . . . . . . . . . . . . . . . Machines | -11 -10 -10 -9 -9 -9 -9 -6 -6 -6 -5 -5 -5 -5 -4 -4 -4 -4 -4 -4 -4 -4 -3 -3 -3 -2 -2 -1 -1 -1 ---------- Run | Yrd Mat Min Mat Sto Rec Scr Fac Was Fac Fac Upp Upp War Pro Fac Was Fac Ext Cet Arc Hub Res Qua Frg Res DSF Acc Com Ac0 Machines Disabled 70 | . 1 . 4 1 . . 1 . . 1 . . 1 . . . 1 7 1 . 1 2 6 36 . . . 3 4 Max in Single Turn 2 | . 1 . 1 1 . . 1 . . 1 . . 1 . . . 1 1 1 . 1 1 1 2 . . . 1 1 Garrison Access 4 | . . . . . . . 1 . . 1 . . . . 1 . . . . . . . . 1 . . . . . Network Hub 1 | . . . . . . . . . . . . . . . . . . . . . 1 . . . . . . . . Machines Repaired . | . . . . . . . . . . . . . . . . . . . . . . . . . . . . . . Machines Dismantled . | . . . . . . . . . . . . . . . . . . . . . . . . . . . . . . Machines Sabotaged . | . . . . . . . . . . . . . . . . . . . . . . . . . . . . . . Overloaded Fab Kills . | . . . . . . . . . . . . . . . . . . . . . . . . . . . . . . Hacking | -11 -10 -10 -9 -9 -9 -9 -6 -6 -6 -5 -5 -5 -5 -4 -4 -4 -4 -4 -4 -4 -4 -3 -3 -3 -2 -2 -1 -1 -1 --------- Run | Yrd Mat Min Mat Sto Rec Scr Fac Was Fac Fac Upp Upp War Pro Fac Was Fac Ext Cet Arc Hub Res Qua Frg Res DSF Acc Com Ac0 Machines Accessed 160 | . 11 . 2 6 13 4 16 . 11 10 . 1 5 . 8 . 8 19 1 1 5 5 10 15 1 . 5 3 . Terminals 90 | . 8 . 2 5 6 . 7 . 3 3 . . . . 3 . 4 16 1 . 5 4 8 7 1 . 5 2 . Fabricators 9 | . . . . . . . 1 . 3 2 . . . . . . . . . . . . . 3 . . . . . Repair Stations 10 | . 1 . . 1 . . 1 . 2 1 . . . . 1 . 1 1 . . . . . . . . . 1 . Recycling Units 26 | . 2 . . . 7 . 5 . 3 1 . . . . 2 . 1 2 . . . . . 3 . . . . . Scanalyzers 8 | . . . . . . . 1 . . 2 . . . . 1 . 1 . . . . 1 1 1 . . . . . Garrison Access 6 | . . . . . . . 1 . . 1 . . . . 1 . 1 . . . . . 1 1 . . . . . Total Hacks 474 | . 41 . 9 12 19 25 37 . 17 15 . 1 13 . 26 . 30 67 1 25 25 24 32 40 1 . 8 6 . Successful 261 | . 23 . 5 6 15 25 19 . 8 8 . 1 13 . 13 . 17 30 . 25 14 10 6 15 1 . 4 3 . Failed 213 | . 18 . 4 6 4 . 18 . 9 7 . . . . 13 . 13 37 1 . 11 14 26 25 . . 4 3 . Catastrophic 44 | . . . . 1 . . 1 . 1 4 . . . . 2 . 4 5 . . 1 2 12 9 . . 2 . . Database Lockouts . | . . . . . . . . . . . . . . . . . . . . . . . . . . . . . . Manual 193 | . 32 . 5 2 18 . 23 . 7 6 . . . . 15 . 8 25 1 . 8 6 14 22 . . 1 . . Terminals 297 | . 36 . 9 10 12 . 20 . 4 6 . . . . 16 . 22 60 1 . 25 18 24 21 1 . 8 4 . Fabricators 14 | . . . . . . . 2 . 4 3 . . . . . . . . . . . . . 5 . . . . . Repair Stations 21 | . 3 . . 2 . . 3 . 2 1 . . . . 2 . 1 5 . . . . . . . . . 2 . Recycling Units 39 | . 2 . . . 7 . 8 . 7 1 . . . . 5 . 1 2 . . . . . 6 . . . . . Scanalyzers 28 | . . . . . . . 2 . . 3 . . . . 2 . 5 . . . . 6 5 5 . . . . . Garrison Access 11 | . . . . . . . 2 . . 1 . . . . 1 . 1 . . . . . 3 3 . . . . . Terminal Hacks 151 | . 6 . 3 4 . 25 7 . 2 1 . 1 13 . 3 . 8 21 . 25 10 5 5 7 1 . 3 1 . Record 69 | . . . . . . 24 . . . . . . 12 . . . . . . 25 . . 2 6 . . . . . Part Schematic 5 | . 3 . . . . . . . . . . . . . . . . 2 . . . . . . . . . . . Robot Analysis 3 | . 1 . . . . . . . . . . . . . . . . . . . 1 1 . . . . . . . Prototype ID Bank 7 | . . . 1 . . . 1 . . . . . . . . . 1 2 . . 1 1 . . . . . . . Open Door 17 | . . . . 4 . . . . . . . 1 1 . . . 1 6 . . . . . . . . 3 1 . Open DSF 2 | . . . . . . . 1 . . . . . . . . . . . . . . . . . 1 . . . . Level Access Points 2 | . . . . . . . . . 1 . . . . . . . . . . . 1 . . . . . . . . Branch Access Points 2 | . . . . . . . 1 . . . . . . . . . 1 . . . . . . . . . . . . Emergency Access Points 3 | . . . . . . . . . . . . . . . 1 . . . . . 2 . . . . . . . . Machine Index 1 | . . . . . . . . . . . . . . . 1 . . . . . . . . . . . . . . Terminal Index 1 | . . . . . . . 1 . . . . . . . . . . . . . . . . . . . . . . Recycling Unit Index 4 | . . . . . . . 1 . 1 . . . . . . . 1 . . . 1 . . . . . . . . Unreport Threat 5 | . . . . . . . . . . . . . . . . . . 3 . . . 1 1 . . . . . . Locate Traps 13 | . 2 . 1 . . . 1 . . 1 . . . . . . 2 3 . . . 1 2 . . . . . . Reprogram Traps 1 | . . . . . . . . . . . . . . . . . . 1 . . . . . . . . . . . Recall Investigation 2 | . . . . . . . . . . . . . . . . . . 2 . . . . . . . . . . . Recall Reinforcements 2 | . . . . . . . . . . . . . . . . . . . . . 2 . . . . . . . . Hauler Manifests 1 | . . . . . . . . . . . . . . . . . . . . . 1 . . . . . . . . Registered Components 3 | . . . 1 . . . . . . . . . . . . . 1 1 . . . . . . . . . . . Zone Layout 6 | . . . . . . . 1 . . . . . . . 1 . 1 1 . . 1 1 . . . . . . . Proto ID Catalog 2 | . . . . . . 1 . . . . . . . . . . . . . . . . . 1 . . . . . Fabricator Hacks 3 | . . . . . . . . . 2 1 . . . . . . . . . . . . . . . . . . . Network Status 1 | . . . . . . . . . . 1 . . . . . . . . . . . . . . . . . . . Build 2 | . . . . . . . . . 2 . . . . . . . . . . . . . . . . . . . . Repair Station Hacks 10 | . 2 . . 2 . . 1 . . . . . . . 2 . . 1 . . . . . . . . . 2 . Scan Component 5 | . 1 . . 1 . . . . . . . . . . 1 . . 1 . . . . . . . . . 1 . Repair 4 | . 1 . . 1 . . . . . . . . . . 1 . . . . . . . . . . . . 1 . Refit 1 | . . . . . . . 1 . . . . . . . . . . . . . . . . . . . . . . Recycling Unit Hacks 1 | . . . . . . . . . 1 . . . . . . . . . . . . . . . . . . . . Retrieve Components 1 | . . . . . . . . . 1 . . . . . . . . . . . . . . . . . . . . Scanalyzer 17 | . . . . . . . 1 . . 2 . . . . 1 . 5 . . . . 3 1 4 . . . . . Insert Component 2 | . . . . . . . . . . 1 . . . . . . 1 . . . . . . . . . . . . Analyze 1 | . . . . . . . . . . . . . . . . . 1 . . . . . . . . . . . . Retrieve Study 14 | . . . . . . . 1 . . 1 . . . . 1 . 3 . . . . 3 1 4 . . . . . Garrison Access Hacks 3 | . . . . . . . 1 . . 1 . . . . 1 . . . . . . . . . . . . . . Seal Access 3 | . . . . . . . 1 . . 1 . . . . 1 . . . . . . . . . . . . . . Unauthorized Hacks 76 | . 15 . 2 . 15 . 9 . 3 3 . . . . 6 . 4 8 . . 4 2 . 4 . . 1 . . Terminals 46 | . 13 . 2 . 8 . 4 . . 1 . . . . 3 . 2 6 . . 4 2 . . . . 1 . . Track 6 | . . . 1 . . . 1 . . . . . . . . . . 2 . . 1 1 . . . . . . . Assimilate 6 | . 4 . . . . . . . . . . . . . 1 . . 1 . . . . . . . . . . . Botnet 15 | . 2 . 1 . 3 . 2 . . . . . . . 1 . 1 2 . . 1 1 . . . . 1 . . Disrupt 2 | . 1 . . . . . . . . . . . . . . . . . . . 1 . . . . . . . . Operators 6 | . 1 . . . . . 1 . . 1 . . . . 1 . 1 1 . . . . . . . . . . . Skim 10 | . 5 . . . 5 . . . . . . . . . . . . . . . . . . . . . . . . Sabotage 1 | . . . . . . . . . . . . . . . . . . . . . 1 . . . . . . . . Fabricators 1 | . . . . . . . . . . 1 . . . . . . . . . . . . . . . . . . . Haulers 1 | . . . . . . . . . . 1 . . . . . . . . . . . . . . . . . . . Repair Stations 2 | . . . . . . . . . 1 . . . . . . . 1 . . . . . . . . . . . . Mechanics 2 | . . . . . . . . . 1 . . . . . . . 1 . . . . . . . . . . . . Recycling Units 26 | . 2 . . . 7 . 5 . 2 1 . . . . 3 . 1 2 . . . . . 3 . . . . . Recyclers 1 | . . . . . . . . . . . . . . . 1 . . . . . . . . . . . . . . Tunnel 10 | . 2 . . . 7 . 1 . . . . . . . . . . . . . . . . . . . . . . Fedlink 13 | . . . . . . . 4 . 2 1 . . . . 2 . 1 2 . . . . . 1 . . . . . Scraphulk 2 | . . . . . . . . . . . . . . . . . . . . . . . . 2 . . . . . Scanalyzers . | . . . . . . . . . . . . . . . . . . . . . . . . . . . . . . Garrison Access 1 | . . . . . . . . . . . . . . . . . . . . . . . . 1 . . . . . Jam 1 | . . . . . . . . . . . . . . . . . . . . . . . . 1 . . . . . Data Cores Recovered 4 | . . . . . . . . . . . . . . . . . . . . . . . 2 1 . . . 1 . Used . | . . . . . . . . . . . . . . . . . . . . . . . . . . . . . . Hacking Detections 92 | . 9 . 2 4 3 . 8 . 8 7 . . . . 4 . 3 13 1 . 4 3 9 10 . . 2 2 . Full Trace Events 4 | . 1 . . . . . . . 1 . . . . . . . . . . . 1 . . 1 . . . . . Feedback Events . | . . . . . . . . . . . . . . . . . . . . . . . . . . . . . . Feedback Blocked . | . . . . . . . . . . . . . . . . . . . . . . . . . . . . . . Robot Schematics Acquired 4 | . . . . . . . . . . . . . . . . . . . . . . . . 4 . . . . . Robots Built 1 | . . . . . . . . . 1 . . . . . . . . . . . . . . . . . . . . Authchips . | . . . . . . . . . . . . . . . . . . . . . . . . . . . . . . Time 58 | . . . . . . . . . 58 . . . . . . . . . . . . . . . . . . . . Total Robot Build Rating 3 | . . . . . . . . . 3 . . . . . . . . . . . . . . . . . . . . Part Schematics Acquired 26 | . 3 . . . . . . . . . . . . . . . 1 2 . . . . . 20 . . . . . Parts Built 2 | . . . . . . . . . 2 . . . . . . . . . . . . . . . . . . . . Authchips . | . . . . . . . . . . . . . . . . . . . . . . . . . . . . . . Time 95 | . . . . . . . . . 95 . . . . . . . . . . . . . . . . . . . . Total Part Build Rating 10 | . . . . . . . . . 10 . . . . . . . . . . . . . . . . . . . . Part Studies Acquired 14 | . . . . . . . 1 . . 1 . . . . 1 . 3 . . . . 3 1 4 . . . . . Parts Repaired 4 | . 1 . . 1 . . . . . . . . . . 1 . . . . . . . . . . . . 1 . Time 150 | . 26 . . 32 . . . . . . . . . . 56 . . . . . . . . . . . . 36 . Parts Recycled . | . . . . . . . . . . . . . . . . . . . . . . . . . . . . . . Recycled Matter . | . . . . . . . . . . . . . . . . . . . . . . . . . . . . . . Retrieved Matter . | . . . . . . . . . . . . . . . . . . . . . . . . . . . . . . Retrieved Components . | . . . . . . . . . . . . . . . . . . . . . . . . . . . . . . Parts Scanalyzed 1 | . . . . . . . . . . . . . . . . . 1 . . . . . . . . . . . . Part Schematics Acquired 1 | . . . . . . . . . . . . . . . . . 1 . . . . . . . . . . . . Parts Damaged . | . . . . . . . . . . . . . . . . . . . . . . . . . . . . . . Bothacking | -11 -10 -10 -9 -9 -9 -9 -6 -6 -6 -5 -5 -5 -5 -4 -4 -4 -4 -4 -4 -4 -4 -3 -3 -3 -2 -2 -1 -1 -1 ------------ Run | Yrd Mat Min Mat Sto Rec Scr Fac Was Fac Fac Upp Upp War Pro Fac Was Fac Ext Cet Arc Hub Res Qua Frg Res DSF Acc Com Ac0 Used RIF Installer . | . . . . . . . . . . . . . . . . . . . . . . . . . . . . . . Robots Hacked 2 | . . . . . . . 1 . . . . . . . 1 . . . . . . . . . . . . . . Non-combat 2 | . . . . . . . 1 . . . . . . . 1 . . . . . . . . . . . . . . Combat . | . . . . . . . . . . . . . . . . . . . . . . . . . . . . . . Robot Hacks Applied 2 | . . . . . . . 1 . . . . . . . 1 . . . . . . . . . . . . . . find_chute 2 | . . . . . . . 1 . . . . . . . 1 . . . . . . . . . . . . . . Relay Couplers Released 2 | . . . . . . . . . . . . . . . . . . . . . . . . 2 . . . . . Machine Destruction 2 | . . . . . . . . . . . . . . . . . . . . . . . . 2 . . . . . Fabnet Peak Effective % . | . . . . . . . . . . . . . . . . . . . . . . . . . . . . . . Robots Rewired 15 | . . . . . . . . . . . . . . . . . . 14 . . . . . 1 . . . . . Allies Hacked 1 | . . . . . . . . . 1 . . . . . . . . . . . . . . . . . . . . Hacks Repelled . | . . . . . . . . . . . . . . . . . . . . . . . . . . . . . . Allies | -11 -10 -10 -9 -9 -9 -9 -6 -6 -6 -5 -5 -5 -5 -4 -4 -4 -4 -4 -4 -4 -4 -3 -3 -3 -2 -2 -1 -1 -1 -------- Run | Yrd Mat Min Mat Sto Rec Scr Fac Was Fac Fac Upp Upp War Pro Fac Was Fac Ext Cet Arc Hub Res Qua Frg Res DSF Acc Com Ac0 Total Allies 56 | . 1 1 . . . . . 19 1 . . . . . . 1 . 25 5 . . . . 3 . . . . . Largest Group 19 | . . 1 . . . . . 19 1 . . . . . . 1 . 12 16 14 10 . . 3 . . . . . Highest-Rated Group 1060 | . . 31 . . . . . 702 23 . . . . . . 46 . 630 1060 916 542 . . 334 . . . . . Highest-Rated Ally 159 | . . 31 . . . . . 50 23 . . . . . . 46 . 159 159 147 96 . . 139 . . . . . Total Orders 46 | . . . . . . . . . 1 . . . . . . . . 6 10 4 3 . . 2 . . . 5 15 STAY 11 | . . . . . . . . . . . . . . . . . . 2 4 1 2 . . 1 . . . . 1 ROAM 4 | . . . . . . . . . . . . . . . . . . 1 2 1 . . . . . . . . . FOLLOW 10 | . . . . . . . . . . . . . . . . . . 3 4 2 1 . . . . . . . . GUARD 1 | . . . . . . . . . . . . . . . . . . . . . . . . 1 . . . . . AID 1 | . . . . . . . . . 1 . . . . . . . . . . . . . . . . . . . . EXPLORE 5 | . . . . . . . . . . . . . . . . . . . . . . . . . . . . . 5 RETURN 14 | . . . . . . . . . . . . . . . . . . . . . . . . . . . . 5 9 Ally Attacks 567 | . . 11 . . . . . 53 . . . . . . . 2 . 127 66 19 92 . . 22 . . . 29 146 Total Damage 22027 | . . 148 . . . . . 2129 . . . . . . . 45 . 3436 1727 879 2455 . . 1063 . . . 2115 8030 Kills 78 | . . 5 . . . . . 6 . . . . . . . . . 18 9 3 14 . . 6 . . . . 17 Allies Corrupted 4 | . . . . . . . . . . . . . . . . . . . . . . . . . . . . 1 3 Allies Melted 6 | . . . . . . . . . . . . . 1 . . . . . . . . . . 5 . . . . . Intel | -11 -10 -10 -9 -9 -9 -9 -6 -6 -6 -5 -5 -5 -5 -4 -4 -4 -4 -4 -4 -4 -4 -3 -3 -3 -2 -2 -1 -1 -1 ------- Run | Yrd Mat Min Mat Sto Rec Scr Fac Was Fac Fac Upp Upp War Pro Fac Was Fac Ext Cet Arc Hub Res Qua Frg Res DSF Acc Com Ac0 Active Infowar (turns) 19601 | 58 1169 521 123 405 353 2953 939 113 422 456 86 248 626 422 393 19 210 1100 312 74 325 692 593 4673 165 27 228 1654 242 Optics 13883 | . . . . . . . 895 113 422 456 86 248 626 422 393 19 210 1100 312 74 325 692 593 4673 165 27 228 1654 150 Sensors 8100 | . . . . . . . 862 105 414 429 86 248 626 422 103 . 195 1100 312 74 325 692 593 1514 . . . . . A.S.S. 963 | . . . . . . . . . . . . . . . . . . . . . . . . 137 165 27 228 406 . IFF 36 | . . . . . . . 36 . . . . . . . . . . . . . . . . . . . . . . Terrain 137 | . . . . . . . . . . . . . . . . . . . . . . . . . . . . 1 136 Seismic 6359 | 58 1169 521 123 405 353 2953 777 . . . . . . . . . . . . . . . . . . . . . . Cloaking 1262 | . . . . . . . . . . . . . . . . . . . . . . . . 338 165 27 228 504 . Jamming 790 | . . . . . . . . . . . . . . . . . . . . . . 2 187 601 . . . . . ECM 395 | . . . . . . . 86 . . . . 1 15 . 197 . 36 60 . . . . . . . . . . . Robot Analysis Total 3 | . 1 . . . . . . . . . . . . . . . . . . . 1 1 . . . . . . . Derelict Logs Recovered 6 | . . 1 . . . . . . . . . 2 . 3 . . . . . . . . . . . . . . . Drone Launches 51 | . . . . . . . . . . . . . . . . . . . . . . . . . . . . 6 45 Drone Recoveries 39 | . . . . . . . . . . . . . . . . . . . . . . . . . . . . 4 35 Exploration | -11 -10 -10 -9 -9 -9 -9 -6 -6 -6 -5 -5 -5 -5 -4 -4 -4 -4 -4 -4 -4 -4 -3 -3 -3 -2 -2 -1 -1 -1 ------------- Run | Yrd Mat Min Mat Sto Rec Scr Fac Was Fac Fac Upp Upp War Pro Fac Was Fac Ext Cet Arc Hub Res Qua Frg Res DSF Acc Com Ac0 Turns Passed 24208 | 144 1417 549 296 945 2290 4293 957 113 422 456 86 248 626 422 393 19 210 1100 312 74 325 692 593 4677 165 27 228 1654 475 Spaces Moved 26544 | 67 819 312 132 357 892 1966 1580 221 765 984 282 613 1189 736 784 73 628 1525 410 54 651 1294 1404 5394 305 34 355 2034 684 Core 2 | . . . . . . . . . 2 . . . . . . . . . . . . . . . . . . . . Treads 3083 | 50 117 . 26 357 892 1475 . . . . . . . . . . . . . . . . . 166 . . . . . Legs 1319 | 17 . . . . . . . . . . . . . . . . . . . . . . . 1302 . . . . . Wheels 1611 | . 702 312 106 . . 491 . . . . . . . . . . . . . . . . . . . . . . . Hover 4620 | . . . . . . . . . . . . . . . . . . . . . . . . 1208 305 34 355 2034 684 Flight 15909 | . . . . . . . 1580 221 763 984 282 613 1189 736 784 73 628 1525 410 54 651 1294 1404 2718 . . . . . Fastest Speed 6 | 120 95 155 110 160 240 123 28 28 28 28 29 29 27 27 25 25 15 15 25 25 12 7 7 6 32 32 33 30 28 Average Speed 60 | 149 140 155 130 211 240 216 28 41 30 29 29 29 28 27 26 25 24 24 25 25 24 23 20 44 32 32 33 34 32 Slowest Speed 480 | 160 240 155 240 240 240 480 101 98 250 31 29 29 103 27 27 25 25 25 25 25 99 26 22 350 32 32 33 108 121 Overloaded Moves 165 | . . . . . . . . . . . . . . . . . 19 3 . . 17 7 20 89 . . . . 10 Propulsion Burnouts . | . . . . . . . . . . . . . . . . . . . . . . . . . . . . . . Robots Hopped 48 | . . . . . . . . . 2 7 2 1 2 . 1 . 1 14 . . 4 4 . 10 . . . . . Potential Cave-ins 4 | . . . . . . . . . . . . . . . . . . . . . . . 4 . . . . . . Cave-ins Triggered 1 | . . . . . . . . . . . . . . . . . . . . . . . 1 . . . . . . Teleports 2 | . . . . . . . . . . . . . . . . . . . . . . . . . . . . 1 1 Exploration Rate (%) 56 | 6 96 75 26 33 98 93 26 91 22 26 57 75 89 78 18 88 17 89 74 80 50 22 96 75 9 49 13 60 50 Regions Visited 29 Branch Regions 16 Pre-discovered Areas 16 | . 2 1 . . 10 1 2 . . . . . . . . . . . . . . . . . . . . . . Known Exits Taken 19 | . . . 1 1 1 . . . 1 1 1 1 1 1 . . 1 1 1 1 1 1 1 1 1 . 1 . . Unknown Exits Taken 5 | 1 1 1 . . . 1 . . . . . . . . . . . . . . . . . . . . . 1 . Scrap Searched 8 | . . . . . . 5 . . . . . 2 . 1 . . . . . . . . . . . . . . . Spaces Dug 312 | . 5 . 12 . . . 25 3 6 25 . 4 . 12 27 . 8 28 . . 46 15 26 38 3 . 13 15 1 Terrain Destroyed 607 | . 14 27 48 . . . 25 3 6 25 . 4 . 12 27 . 8 62 111 . 46 38 26 66 4 . 17 25 13 Melee 229 | . 5 . 2 . . . 25 3 6 25 . 4 . 12 24 . 8 9 . . 26 14 21 22 3 . 11 8 1 Projectile 72 | . . . . . . . . . . . . . . . 3 . . . . . . 1 5 44 1 . 6 12 . AOE 305 | . 9 27 46 . . . . . . . . . . . . . . 53 111 . 20 23 . . . . . 4 12 Terrain Rammed . | . . . . . . . . . . . . . . . . . . . . . . . . . . . . . . Walls Destroyed . | . . . . . . . . . . . . . . . . . . . . . . . . . . . . . . Machines Disabled . | . . . . . . . . . . . . . . . . . . . . . . . . . . . . . . Actions | -11 -10 -10 -9 -9 -9 -9 -6 -6 -6 -5 -5 -5 -5 -4 -4 -4 -4 -4 -4 -4 -4 -3 -3 -3 -2 -2 -1 -1 -1 --------- Run | Yrd Mat Min Mat Sto Rec Scr Fac Was Fac Fac Upp Upp War Pro Fac Was Fac Ext Cet Arc Hub Res Qua Frg Res DSF Acc Com Ac0 Total 33533 | 88 1008 348 196 501 1005 2018 2046 236 943 1104 283 675 1478 935 927 72 666 2197 611 113 776 1655 1635 7365 371 48 450 2937 846 Wait 4476 | . 65 12 1 63 79 2 357 8 132 64 4 59 240 181 80 . 8 514 183 60 74 320 98 1012 54 14 79 706 7 Move 26427 | 66 818 311 131 356 891 1965 1580 220 760 970 277 610 1184 735 782 72 625 1499 409 53 642 1285 1402 5376 305 33 354 2033 683 Hop 41 | . . . . . . . . . 2 6 2 1 2 . 1 . 1 11 . . 4 4 . 7 . . . . . Pick Up 243 | 3 27 . 4 18 4 12 9 1 2 7 . . 3 1 4 . 1 3 2 . 1 . 12 102 1 . 1 22 3 Fast Attach 222 | 1 2 . 2 1 . 5 10 2 6 12 . 1 17 . 8 . 5 4 1 . 3 6 7 108 . . . 17 4 Attach 150 | 2 . . 5 3 . 1 15 . 4 1 . . 4 . 4 . . 1 . . . 1 4 72 3 . 1 17 12 Detach 120 | 1 1 . . 1 . 2 6 . 4 4 . . 9 . 3 . 2 . . . . 4 5 54 1 . . 17 6 Swap 237 | . 27 12 14 18 4 5 5 . 1 1 . . 2 . 1 . 4 5 7 . 4 7 11 67 2 1 . 20 19 Drop 409 | 2 23 . 4 14 6 26 27 2 9 12 . . 15 1 9 . 4 7 3 . 6 3 20 178 1 . . 33 4 Fire 349 | 13 31 12 31 19 18 . . . 1 . . . 1 . 3 . . 3 5 . 1 3 5 154 1 . 4 36 8 Melee 646 | . 14 1 4 8 2 . 37 3 7 27 . 4 . 17 32 . 16 35 1 . 41 22 65 163 3 . 11 36 97 Ram . | . . . . . . . . . . . . . . . . . . . . . . . . . . . . . . Kick . | . . . . . . . . . . . . . . . . . . . . . . . . . . . . . . Crush 1 | . . . . . 1 . . . . . . . . . . . . . . . . . . . . . . . . Escape Stasis 108 | . . . . . . . . . 15 . . . . . . . . 17 . . . . 6 70 . . . . . Rewire 102 | . . . . . . . . . . . . . 1 . . . . 98 . . . . . 2 . . . . 1 Trap . | . . . . . . . . . . . . . . . . . . . . . . . . . . . . . . Miscellaneous 2 | . . . . . . . . . . . . . . . . . . . . . . . . . . . . . 2 Route ------- -11/Scrapyard -10/Materials (discovered 6 exits: *Mat x3 / [*Min x2] / [*Sub]) -10/Mines (discovered 2 exits: *Mat x2) -9/Materials (discovered 3 exits: *Min / *Sto x2) -9/Storage -9/Recycling (discovered 2 exits: *Fac / *Scr) -9/Scraptown (discovered 2 exits: *Fac x2) -6/Factory (discovered 2 exits: *Low x2) -6/Waste -6/Factory (discovered 4 exits: *Fac x4) -5/Factory -5/Upper Caves -5/Upper Caves (discovered 2 exits: *Fac / *War) -5/Warlord -4/Proximity Caves -4/Factory -4/Waste -4/Factory (discovered 5 exits: *Res / *Upp x2 / *Ext x2) -4/Extension (discovered 2 exits: *Res / *Cet) -4/Cetus (discovered 2 exits: *Res / *Arc) -4/Archives (discovered 2 exits: *Hub x2) -4/Hub_04(d) (discovered 4 exits: *Res x4) -3/Research (discovered 2 exits: *Arm / *Qua) -3/Quarantine (discovered 3 exits: *Res / [*Sec] / *Frg) -3/Protoforge -2/Research -2/DSF -1/Access -1/Command (discovered 3 exits: [*Sur x2] / [*Ac0]) -1/Access_0 Near Former Tau Ceti IV History --------- Turn | Location | Event 21 | -11/Scrapyard | Discovered new exit (range 3) 145 | -11/Scrapyard | Entered Materials 251 | -10/Materials | Discovered new exit (range 16) 305 | -10/Materials | Build established: Mutant 390 | -10/Materials | Discovered new exit (range 13) 583 | -10/Materials | Discovered new exit (range 5) 605 | -10/Materials | Discovered new exit (range 15) 915 | -10/Materials | Discovered new exit (range 13) 1003 | -10/Materials | Learned Storage terminal intel 1045 | -10/Materials | Derelicts attacked the area 1045 | -10/Materials | Learned location of 1 exit from Storage 1333 | -10/Materials | Discovered new exit (range 9) 1386 | -10/Materials | Repaired Lgt. Armor Plating 1562 | -10/Materials | Entered Mines 1596 | -10/Mines | A weapon hastily lodged in a ceiling crevice suddenly fell to the ground 1679 | -10/Mines | Learned location of Zion (-6) 1696 | -10/Mines | Discovered new exit (range 11) 1733 | -10/Mines | Received a Mining Laser from a helpful Derelict 2105 | -10/Mines | Discovered new exit (range 4) 2111 | -10/Mines | Entered Materials 2111 | -9/Materials | Evolved 2 slots: Propulsion x1, Utility x1 2112 | -9/Materials | Identified exit to Mines 2112 | -9/Materials | Identified exit to Storage 2407 | -9/Materials | Entered Storage 2408 | -9/Storage | Identified exit to Recycling 2409 | -9/Storage | Loaded intel: 14 terminal locations 2420 | -9/Storage | Lost 6 parts (1p3n1u1w) 2894 | -9/Storage | Core integrity fell below 50% 3159 | -9/Storage | Used back door to open Recycling access 3246 | -9/Storage | Repaired Imp. Treads 3352 | -9/Storage | Entered Recycling 4078 | -9/Recycling | Scanned before Scraplab entrance 4373 | -9/Recycling | Discovered new exit (range 5) 5434 | -9/Recycling | Learned Storage stockpile data 5497 | -9/Recycling | Learned Materials stockpile data 5514 | -9/Recycling | Learned location of Storage (-9) 5521 | -9/Recycling | Identified exit to Scraptown 5521 | -9/Recycling | Identified exit to Factory 5618 | -9/Recycling | Entered Scraplab 5642 | -9/Recycling | Entered Scraptown 6272 | -9/Scraptown | Discovered new exit (range 11) 6407 | -9/Scraptown | Visited Red Mages 6522 | -9/Scraptown | Visited TADAMA 6587 | -9/Scraptown | Visited Awakened 6611 | -9/Scraptown | Visited IN-MT5's Study 6666 | -9/Scraptown | Visited UFD Registry 6697 | -9/Scraptown | Visited Junk Repository 6801 | -9/Scraptown | Visited Fellowship of the Rings 7598 | -9/Scraptown | Registered with UFD as "Coghacker" 7646 | -9/Scraptown | Visited Scrapoid Research Area 7685 | -9/Scraptown | Visited Curators Association 7730 | -9/Scraptown | Visited Scrap Suit Storage 8069 | -9/Scraptown | Visited Abandonware Association 8100 | -9/Scraptown | Learned abandonware demo "TRNCOAT.EXE" 8100 | -9/Scraptown | Learned abandonware demo "REBOOT5.EXE" 8153 | -9/Scraptown | Visited DA-N13 Charitable Foundation 8179 | -9/Scraptown | Found DCF Scrap (31 items) 8332 | -9/Scraptown | Visited Science Guys 8419 | -9/Scraptown | Visited Observation Area 8769 | -9/Scraptown | Visited Chapter 10 9554 | -9/Scraptown | Build established: Derelict-Mutant 9615 | -9/Scraptown | Visited Supply Room 9863 | -9/Scraptown | Met Optimus 9863 | -9/Scraptown | Accepted into 0bPrime 9928 | -9/Scraptown | Discovered new exit (range 5) 9935 | -9/Scraptown | Entered Factory 9935 | -6/Factory | Evolved 6 slots: Propulsion x2, Utility x4 10002 | -6/Factory | Identified exit to DSF 10233 | -6/Factory | Loaded intel: 8 recycling unit locations 10251 | -6/Factory | Learned location of Protoforge (-3) 10278 | -6/Factory | Build established: Sprinter 10422 | -6/Factory | Discovered new exit (range 6) 10423 | -6/Factory | Identified exit to Lower Caves 10737 | -6/Factory | Found Launcher Loader 10802 | -6/Factory | Build established: Scout 10892 | -6/Factory | Sucked down chute 10892 | -6/Factory | Entered Waste 10894 | -6/Waste | Spotted C-40 Crusher 10894 | -6/Waste | Spotted C-40 Crusher 10898 | -6/Waste | Spotted C-40 Crusher 10898 | -6/Waste | Spotted C-40 Crusher 10898 | -6/Waste | Spotted C-40 Crusher 10907 | -6/Waste | EMP discharged 10910 | -6/Waste | Spotted C-40 Crusher 10915 | -6/Waste | System corruption reached 10% 10954 | -6/Waste | Met Warlord forces unprepared to attack 10956 | -6/Waste | Allies destroyed C-40 Crusher 10960 | -6/Waste | Allies destroyed C-40 Crusher 10963 | -6/Waste | Allies destroyed C-40 Crusher 10966 | -6/Waste | Allies destroyed C-40 Crusher 10966 | -6/Waste | Allies destroyed C-40 Crusher 10983 | -6/Waste | Allies destroyed C-40 Crusher 11002 | -6/Waste | Discovered new exit (range 12) 11005 | -6/Waste | Identified exit to Factory 11005 | -6/Waste | Entered Factory 11117 | -6/Factory | Discovered new exit (range 21) 11121 | -6/Factory | Identified exit to Factory 11159 | -6/Factory | Fabricated M-28 Smith? 11281 | -6/Factory | Spotted B-75 Beast 11328 | -6/Factory | Loaded intel: 8 recycling unit locations 11386 | -6/Factory | Fabricated Imp. System Restoration Module? 11427 | -6/Factory | Entered another Factory area 11427 | -5/Factory | Evolved 2 slots: Power x1, Utility x1 11556 | -5/Factory | Spotted B-75 Beast 11651 | -5/Factory | Discovered new exit (range 21) 11660 | -5/Factory | Identified exit to Upper Caves 11721 | -5/Factory | Loaded intel: 8 recycling unit locations 11738 | -5/Factory | Build established: Hacker-Scout 11883 | -5/Factory | Entered Upper Caves 11962 | -5/Upper Caves | Discovered new exit (range 21) 11967 | -5/Upper Caves | Identified exit to Upper Caves 11969 | -5/Upper Caves | Entered another Upper Caves area 11981 | -5/Upper Caves | Discovered new exit (range 10) 12098 | -5/Upper Caves | Encountered a Warlord checkpoint 12128 | -5/Upper Caves | Discovered new exit (range 21) 12134 | -5/Upper Caves | Identified exit to Warlord 12157 | -5/Upper Caves | Learned Factory non-interactive machine intel 12217 | -5/Upper Caves | Entered Warlord 12289 | -5/Warlord | Learned Armory terminal intel 12289 | -5/Warlord | Learned Armory repair station intel 12289 | -5/Warlord | Learned Research fabricator intel 12289 | -5/Warlord | Learned Research garrison access intel 12289 | -5/Warlord | Learned 4 Armory zone layouts 12289 | -5/Warlord | Learned 4 Testing zone layouts 12289 | -5/Warlord | Learned Research trap positions 12289 | -5/Warlord | Learned Testing trap positions 12355 | -5/Warlord | Warlord's base attacked by MAIN.C 12370 | -5/Warlord | Found Prototype Energy Gun 12370 | -5/Warlord | Identified Vortex Shotgun 12393 | -5/Warlord | Build established: Ninja 12427 | -5/Warlord | Found Prototype Processor 12427 | -5/Warlord | Identified Exp. Targeting Computer 12432 | -5/Warlord | Found Prototype Device 12432 | -5/Warlord | Identified System Purifier 12434 | -5/Warlord | Found Prototype Processor 12434 | -5/Warlord | Identified Spectral Analyzer 12438 | -5/Warlord | Found Prototype Hackware 12491 | -5/Warlord | Found Prototype Device 12491 | -5/Warlord | Identified Minesniffer Drone Bay 12528 | -5/Warlord | Found Signal Generator 12704 | -5/Warlord | Warlord forces counterattacked 12709 | -5/Warlord | Lost 3 allies 12726 | -5/Warlord | Spotted Striker 12815 | -5/Warlord | Spotted Striker 12838 | -5/Warlord | Discovered new exit (range 19) 12843 | -5/Warlord | Identified exit to Proximity Caves 12843 | -5/Warlord | Entered Proximity Caves 12856 | -4/Proximity Caves | Encountered a Derelict sapper outpost 12870 | -4/Proximity Caves | Lost 17 allies 12924 | -4/Proximity Caves | Spotter reported a threat 12974 | -4/Proximity Caves | Identified exit to Factory 13122 | -4/Proximity Caves | Learned Research emergency access door positions 13265 | -4/Proximity Caves | Entered Factory 13265 | -4/Factory | Evolved 2 slots: Propulsion x1, Utility x1 13266 | -4/Factory | Loaded intel: 285 non-interactive machine locations 13375 | -4/Factory | Identified Ghost Barrier 13456 | -4/Factory | Repaired Imp. Dynamic Insulation System 13632 | -4/Factory | Spotted B-86 Titan 13635 | -4/Factory | Loaded intel: 8 recycling unit locations 13658 | -4/Factory | Manually triggered Chute Trap 13658 | -4/Factory | Sucked down chute 13658 | -4/Factory | Entered Waste 13659 | -4/Waste | Met a frightened Derelict 13664 | -4/Waste | Spotted C-40 Crusher 13667 | -4/Waste | Spotted C-40 Crusher 13670 | -4/Waste | Spotted C-40 Crusher 13671 | -4/Waste | Discovered new exit (range 24) 13672 | -4/Waste | Spotted C-40 Crusher 13673 | -4/Waste | EMP discharged 13673 | -4/Waste | Spotted C-40 Crusher 13676 | -4/Waste | Identified exit to Factory 13677 | -4/Waste | Entered Factory 13678 | -4/Factory | Discovered new exit (range 14) 13683 | -4/Factory | Identified exit to Upper Caves 13734 | -4/Factory | Identified exit to Extension 13790 | -4/Factory | Discovered new exit (range 15) 13793 | -4/Factory | Identified exit to Research 13811 | -4/Factory | Loaded intel: 8 recycling unit locations 13887 | -4/Factory | Entered Extension 14003 | -4/Extension | Rescued a captive Derelict 14004 | -4/Extension | Build established: Hacker-Ninja 14067 | -4/Extension | Loaded intel: 2 recycling unit locations 14083 | -4/Extension | Rescued a captive Derelict 14141 | -4/Extension | Rescued a captive Derelict 14143 | -4/Extension | Rescued a captive Derelict 14534 | -4/Extension | Spotted B-86 Titan 14562 | -4/Extension | Spotted B-86 Titan 14573 | -4/Extension | Allies destroyed B-86 Titan 14592 | -4/Extension | Destroyed B-86 Titan 14643 | -4/Extension | Lost 9 allies 14646 | -4/Extension | Rescued a captive Derelict 14728 | -4/Extension | Rescued a captive Derelict 14834 | -4/Extension | Rescued A7 14846 | -4/Extension | Rescued a captive Derelict 14846 | -4/Extension | Rescued a captive Derelict 14848 | -4/Extension | Rescued a captive Derelict 14860 | -4/Extension | Discovered exit to Research (range 10) 14860 | -4/Extension | Discovered new exit (range 6) 14864 | -4/Extension | Identified exit to Cetus 14987 | -4/Extension | Entered Cetus 14987 | -4/Cetus | Accompanied by 12 allies (A7) 14992 | -4/Cetus | Acquired a Cetus Manufacturing Module code from A7 14995 | -4/Cetus | Spotted Cetus Guard 14997 | -4/Cetus | Spotted Cetus Guard 14997 | -4/Cetus | Spotted Cetus Guard 15006 | -4/Cetus | Allies destroyed Cetus Guard 15012 | -4/Cetus | Allies destroyed Cetus Guard 15014 | -4/Cetus | Allies destroyed Cetus Guard 15025 | -4/Cetus | Started Cetus Manufacturing Module 15050 | -4/Cetus | Manufactured an Enhanced Grunt 15064 | -4/Cetus | Discovered new exit (range 23) 15075 | -4/Cetus | Manufactured an Enhanced Grunt 15100 | -4/Cetus | Manufactured an Enhanced Grunt 15125 | -4/Cetus | Manufactured an Enhanced Grunt 15125 | -4/Cetus | Build established: Commander-Scout 15132 | -4/Cetus | Spotted Cetus Guard 15132 | -4/Cetus | Spotted Cetus Guard 15134 | -4/Cetus | Spotted Cetus Guard 15134 | -4/Cetus | Spotted Cetus Guard 15150 | -4/Cetus | Manufactured an Enhanced Grunt 15155 | -4/Cetus | Allies destroyed Cetus Guard 15165 | -4/Cetus | Allies destroyed Cetus Guard 15167 | -4/Cetus | Allies destroyed Cetus Guard 15171 | -4/Cetus | Allies destroyed Cetus Guard 15174 | -4/Cetus | Discovered exit to Research (range 24) 15181 | -4/Cetus | Met Revision 17 15190 | -4/Cetus | Identified exit to Archives 15299 | -4/Cetus | Entered Archives 15299 | -4/Archives | Accompanied by 14 allies (A7) 15320 | -4/Archives | Met Zhirov 15320 | -4/Archives | Discovered new exit (range 23) 15321 | -4/Archives | Discovered new exit (range 21) 15323 | -4/Archives | Read partially decrypted archive contents 15326 | -4/Archives | Reinforcements dispatched to Archives 15329 | -4/Archives | Identified exit to Hub_04(d) 15371 | -4/Archives | Reinforcements dispatched to Archives 15373 | -4/Archives | Zhirov warped through subspace 15373 | -4/Archives | Entered Hub_04(d) 15373 | -4/Hub_04(d) | Accompanied by 10 allies 15374 | -4/Hub_04(d) | Discovered exit to Research (range 12) 15542 | -4/Hub_04(d) | Spotted B-86 Titan 15613 | -4/Hub_04(d) | Network Hub disabled 15619 | -4/Hub_04(d) | Lost 4 allies 15678 | -4/Hub_04(d) | Spotted Lightning 15696 | -4/Hub_04(d) | Spotted Lightning 15698 | -4/Hub_04(d) | Entered Research 15698 | -3/Research | Evolved 2 slots: Propulsion x2 15699 | -3/Research | Identified exit to Quarantine 15700 | -3/Research | Loaded intel: 67 trap records 15702 | -3/Research | Loaded intel: 3 fabricator locations 15703 | -3/Research | Loaded intel: 3 garrison access locations 15769 | -3/Research | Discovered new exit (range 13) 15771 | -3/Research | Identified exit to Armory 15805 | -3/Research | Build established: Hacker-Scout 15835 | -3/Research | Spotted B-86 Titan 15898 | -3/Research | Revision forces began assault on 0b10 16113 | -3/Research | Met up with Revision 17++ 16136 | -3/Research | Spotted B-90 Cyclops 16390 | -3/Research | Entered Quarantine 16410 | -3/Quarantine | Found Alien Slashing Weapon 16410 | -3/Quarantine | Identified Sigix Broadsword 16507 | -3/Quarantine | Cryocooling Duct disabled 16522 | -3/Quarantine | Ambient heat levels rising (+20) 16522 | -3/Quarantine | Non-combat units ordered to evacuate 16827 | -3/Quarantine | Crushed by falling debris 16898 | -3/Quarantine | System corruption reached 10% 16915 | -3/Quarantine | Discovered new exit (range 8) 16951 | -3/Quarantine | Found Alien Artifact 16953 | -3/Quarantine | Found Alien Artifact 16961 | -3/Quarantine | Found Alien Artifact 16968 | -3/Quarantine | Spotted Fortress 16981 | -3/Quarantine | Discovered new exit (range 6) 16981 | -3/Quarantine | Discovered new exit (range 7) 16983 | -3/Quarantine | Identified exit to Protoforge 16983 | -3/Quarantine | Entered Protoforge 16985 | -3/Protoforge | Spotted Hotshot 16991 | -3/Protoforge | Spotted Hotshot 17195 | -3/Protoforge | Discovered new exit (range 14) 17195 | -3/Protoforge | Spotted Hotshot 17195 | -3/Protoforge | Spotted Hotshot 17205 | -3/Protoforge | Build established: Hacker-Ninja 17327 | -3/Protoforge | Spotted Hotshot 17330 | -3/Protoforge | Spotted B-86 Titan 17412 | -3/Protoforge | Spotted Immortal 17412 | -3/Protoforge | Spotted Immortal 17425 | -3/Protoforge | Identified Core Reset Matrix 17425 | -3/Protoforge | Identified Dimensional Node Initializer 17425 | -3/Protoforge | Identified Hpw. Transdimensional Reconstructor 17425 | -3/Protoforge | Used Core Reset Matrix 17429 | -3/Protoforge | Sensed 2 artifacts in vicinity 17518 | -3/Protoforge | Found Exp. Terror Saw 17525 | -3/Protoforge | Found Cep. NT7 Matterbank 17531 | -3/Protoforge | Found Cep. XC Strikerail 17538 | -3/Protoforge | Spotted EXE-6 17539 | -3/Protoforge | Spotted EXE-6 17553 | -3/Protoforge | Spotted SKR-2 17555 | -3/Protoforge | Spotted SKR-2 17558 | -3/Protoforge | UFD initiated attack on Protoforge (Readiness: Adequate) 17558 | -3/Protoforge | Loaded intel: 3 recycling unit locations 17578 | -3/Protoforge | Superfortress began startup sequence 17595 | -3/Protoforge | Optimus greeted in Protoforge 17604 | -3/Protoforge | Found Cep. XC Strikerail 17606 | -3/Protoforge | Found Prototype Processor 17606 | -3/Protoforge | Identified Exp. Core Analyzer 17610 | -3/Protoforge | Found Prototype Processor 17610 | -3/Protoforge | Identified Exp. Armor Integrity Analyzer 17617 | -3/Protoforge | Found Cep. XC Strikerail 17629 | -3/Protoforge | Lost 3 allies 17635 | -3/Protoforge | Scraphulk reinforcements arrived? 17636 | -3/Protoforge | Scraphulk reinforcements arrived? 17650 | -3/Protoforge | Spotted EXE-6 17744 | -3/Protoforge | Met 7R-MNS 17832 | -3/Protoforge | Spotted Striker 17832 | -3/Protoforge | Spotted Executioner 17867 | -3/Protoforge | Spotted V771-y 17875 | -3/Protoforge | Spotted Decapitator 17875 | -3/Protoforge | Spotted V485-q 17890 | -3/Protoforge | Build established: Scavenger-Scout 18008 | -3/Protoforge | Destroyed Immortal 18011 | -3/Protoforge | Destroyed Immortal 18017 | -3/Protoforge | Initialized slip node 18023 | -3/Protoforge | Found Cep. Core Shell 18027 | -3/Protoforge | Found Corrupted Prototype Piercing Weapon 18032 | -3/Protoforge | Spotted Decapitator 18032 | -3/Protoforge | Spotted Decapitator 18032 | -3/Protoforge | Spotted Decapitator 18047 | -3/Protoforge | Destroyed Decapitator 18110 | -3/Protoforge | Found Cep. Zero-point Core 18124 | -3/Protoforge | Found Cep. Matter Streamer 18130 | -3/Protoforge | Spotted V649-u 18155 | -3/Protoforge | Spotted Immortal 18158 | -3/Protoforge | Destroyed V649-u 18161 | -3/Protoforge | Spotted Immortal 18173 | -3/Protoforge | Destroyed Immortal 18202 | -3/Protoforge | Destroyed Immortal 18205 | -3/Protoforge | Found Cep. Core Shell 18221 | -3/Protoforge | UFD reported confirmed Drillbomb installation 18223 | -3/Protoforge | Found Cep. Core Shell 18248 | -3/Protoforge | Found Prototype Device 18249 | -3/Protoforge | Identified Crosscalibrator 18279 | -3/Protoforge | Found Cep. Tiamat Rocket Array 18319 | -3/Protoforge | Build established: Scavenger-Sprinter 18394 | -3/Protoforge | Spotted Hotshot 18522 | -3/Protoforge | Destroyed Hotshot 18605 | -3/Protoforge | Destroyed V771-y 18623 | -3/Protoforge | Found Cep. Weapon Articulator 18625 | -3/Protoforge | Found Cep. Hypertargeting System 18627 | -3/Protoforge | Found Prototype Processor 18627 | -3/Protoforge | Identified Cep. Melee Reflex Suite 18689 | -3/Protoforge | Found Cep. Weapon Articulator 18743 | -3/Protoforge | Spotted V686-c 18743 | -3/Protoforge | Spotted V880-s 18744 | -3/Protoforge | Found Femtoactuators 18747 | -3/Protoforge | Spotted V099-h 18748 | -3/Protoforge | Found Faulty Femtoactuators 18763 | -3/Protoforge | Spotted Immortal 18780 | -3/Protoforge | Spotted Decapitator 18780 | -3/Protoforge | Spotted Decapitator 18784 | -3/Protoforge | Destroyed Decapitator 18784 | -3/Protoforge | Destroyed Decapitator 18808 | -3/Protoforge | Found Exp. Remote Shield 18816 | -3/Protoforge | Spotted Immortal 18910 | -3/Protoforge | Destroyed Immortal 18927 | -3/Protoforge | Destroyed Immortal 18955 | -3/Protoforge | Spotted Immortal 18965 | -3/Protoforge | Destroyed Immortal 18967 | -3/Protoforge | Spotted V990-b 18978 | -3/Protoforge | Spotted V025-k 19000 | -3/Protoforge | Identified Exp. Jetlance 19005 | -3/Protoforge | Destroyed V025-k 19005 | -3/Protoforge | Spotted V317-m 19023 | -3/Protoforge | Destroyed V990-b 19025 | -3/Protoforge | Destroyed V317-m 19037 | -3/Protoforge | Found Prototype Hover Unit 19037 | -3/Protoforge | Identified Cep. Combat Aerolev Unit 19048 | -3/Protoforge | Found Prototype Processor 19048 | -3/Protoforge | Identified Exp. Target Analyzer 19052 | -3/Protoforge | Found Spectral Analyzer 19075 | -3/Protoforge | Found Prototype Device 19075 | -3/Protoforge | Identified Exp. Shield Generator 19083 | -3/Protoforge | Found Cep. Gyrokinetic System 19085 | -3/Protoforge | Found Cep. Gyrokinetic System 19117 | -3/Protoforge | Found Cep. Gyrokinetic System 19197 | -3/Protoforge | Found Prototype Storage 19197 | -3/Protoforge | Identified Cep. Antigrav Storage Unit 19201 | -3/Protoforge | Found Prototype Storage 19202 | -3/Protoforge | Identified Cep. Chromion Battery 19206 | -3/Protoforge | Found Cep. NT7 Matterbank 19214 | -3/Protoforge | Found Cep. NT7 Matterbank 19225 | -3/Protoforge | Found Cep. Antigrav Storage Unit 19267 | -3/Protoforge | Found Faulty Cep. Combat Aerolev Unit 19273 | -3/Protoforge | Found Cep. Biometal Exoskeleton 19523 | -3/Protoforge | Spotted V885-x 19538 | -3/Protoforge | Destroyed V485-q 19569 | -3/Protoforge | Build established: Scavenger-Gladiator 19570 | -3/Protoforge | Destroyed Decapitator 19579 | -3/Protoforge | Destroyed V885-x 19605 | -3/Protoforge | Found Cep. Plasma Driver 19610 | -3/Protoforge | Found Faulty Cep. Plasma Driver 19614 | -3/Protoforge | Found Prototype Slashing Weapon 19614 | -3/Protoforge | Identified Exp. Terror Saw 19619 | -3/Protoforge | Found Prototype Ballistic Cannon 19619 | -3/Protoforge | Identified Cep. Heavy Railcannon 19624 | -3/Protoforge | Found Cep. Deflector Sword 19626 | -3/Protoforge | Found Cep. Helical Railcannon 19630 | -3/Protoforge | Found Prototype Energy Gun 19630 | -3/Protoforge | Identified Cep. Variable Chargecaster 19634 | -3/Protoforge | Found Exp. Jetlance 19662 | -3/Protoforge | Found Prototype Ballistic Cannon 19662 | -3/Protoforge | Identified Cep. Miniperforator 19772 | -3/Protoforge | Spotted V983-d 19772 | -3/Protoforge | Spotted V395-i 19772 | -3/Protoforge | Spotted V773-r 19773 | -3/Protoforge | Spotted V765-h 19792 | -3/Protoforge | Destroyed V395-i 19803 | -3/Protoforge | Destroyed V773-r 19827 | -3/Protoforge | Destroyed V983-d 19868 | -3/Protoforge | Found Faulty Cep. Smart ZDS 19872 | -3/Protoforge | Found Faulty Cep. Smart ZDS 19879 | -3/Protoforge | Found Cep. Rapid Grenade Launcher 20108 | -3/Protoforge | Destroyed V099-h 20114 | -3/Protoforge | Destroyed V880-s 20117 | -3/Protoforge | Destroyed V686-c 20149 | -3/Protoforge | Found Prototype Device 20149 | -3/Protoforge | Identified Exp. Shock Absorption System 20154 | -3/Protoforge | Found Cep. Zero-point Core 20167 | -3/Protoforge | Found Prototype Device 20167 | -3/Protoforge | Identified Exp. Kinecellerator 20171 | -3/Protoforge | Found Corrupted Prototype Device 20171 | -3/Protoforge | Identified Cep. Networked Targeting System 20172 | -3/Protoforge | System corruption reached 30% 20192 | -3/Protoforge | Found Prototype Device 20192 | -3/Protoforge | Identified Cep. Recoil Nullifier 20197 | -3/Protoforge | Found Prototype Device 20197 | -3/Protoforge | Identified Cep. Countertargeting System 20207 | -3/Protoforge | Found Cep. Melee Reflex Suite 20291 | -3/Protoforge | Found Prototype Protection 20291 | -3/Protoforge | Identified Cep. RG22 Armor 20295 | -3/Protoforge | Found Prototype Device 20295 | -3/Protoforge | Identified Cep. Reaction Jets 20308 | -3/Protoforge | Found Prototype Device 20308 | -3/Protoforge | Identified Cep. Beam Splitter 20311 | -3/Protoforge | Found Prototype Device 20311 | -3/Protoforge | Identified Exp. Remote Shield 20315 | -3/Protoforge | Found Cep. Core Shell 20389 | -3/Protoforge | Build established: Scavenger-Mutant 20609 | -3/Protoforge | Scanned by Researcher 20616 | -3/Protoforge | Spotted AP7-3 20627 | -3/Protoforge | Spotted AP7-3 20668 | -3/Protoforge | Destroyed AP7-3 20677 | -3/Protoforge | Destroyed AP7-3 20753 | -3/Protoforge | Found Prototype Processor 20753 | -3/Protoforge | Identified Exp. Targeting Computer 20771 | -3/Protoforge | Found Prototype Device 20771 | -3/Protoforge | Identified Cep. Thermoelectric Network 20775 | -3/Protoforge | Found Prototype Device 20775 | -3/Protoforge | Identified Cep. Cloak Mesh 20792 | -3/Protoforge | Found Cep. Cloak Mesh 20800 | -3/Protoforge | Found Cep. Cloak Mesh 20808 | -3/Protoforge | Found Prototype Device 20808 | -3/Protoforge | Identified Cep. Impact Drone Bay 20813 | -3/Protoforge | Found Faulty Cep. Impact Drone Bay 20822 | -3/Protoforge | Found Prototype Processor 20827 | -3/Protoforge | Found Prototype Processor 20827 | -3/Protoforge | Identified Cep. Core Analysis Suite (x2) 20851 | -3/Protoforge | Forge Plexus network access discovered 20936 | -3/Protoforge | Found Cep. Matter Streamer 20978 | -3/Protoforge | Core integrity fell below 50% 21020 | -3/Protoforge | Additional patrols dispatched to research labs 21033 | -3/Protoforge | Found Cep. Nanofilaments [Conductive] 21033 | -3/Protoforge | Installed Cep. Nanofilaments [Conductive], 2 resistances modified: TH -15%, EM +25% 21049 | -3/Protoforge | Found Cep. Navigation Harness 21094 | -3/Protoforge | UFD reported confirmed Drillbomb installation 21303 | -3/Protoforge | Found Faulty Cep. Lightning Penetrator 21305 | -3/Protoforge | Found Faulty Cep. Lightning Penetrator 21339 | -3/Protoforge | Found Exp. Jetlance 21397 | -3/Protoforge | Found Exp. Active Sensor Suite 21487 | -3/Protoforge | Build established: Scavenger-Sprinter 21533 | -3/Protoforge | Spotted Executioner 21535 | -3/Protoforge | Spotted Executioner 21536 | -3/Protoforge | P-80 Master assimilated allied 03FHE-D 21566 | -3/Protoforge | Lost 3 allies 21656 | -3/Protoforge | Discovered new exit (range 6) 21660 | -3/Protoforge | Identified exit to Research 21660 | -3/Protoforge | Entered Research 21660 | -2/Research | Evolved 2 slots: Utility x2 21823 | -2/Research | Build established: Scavenger-Ninja 21825 | -2/Research | Identified exit to DSF 21825 | -2/Research | Entered DSF 21829 | -2/DSF | Discovered new exit (range 23) 21841 | -2/DSF | Additional patrols routed to DSF 21851 | -2/DSF | Identified exit to Access 21852 | -2/DSF | Entered Access 21852 | -1/Access | Evolved 2 slots: Power x1, Utility x1 22078 | -1/Access | Discovered new exit (range 7) 22080 | -1/Access | Identified exit to Command 22080 | -1/Access | Entered Command 22182 | -1/Command | Repaired Centrium Medium Armor Plating 22330 | -1/Command | First assault squad dispatched 22504 | -1/Command | Spotted M Guard 22504 | -1/Command | Spotted Combat Programmer 22505 | -1/Command | Spotted M Guard 22505 | -1/Command | Spotted Combat Programmer 22520 | -1/Command | Destroyed Combat Programmer 22526 | -1/Command | Destroyed Combat Programmer 22591 | -1/Command | Destroyed 9 combat bots 22603 | -1/Command | Met MAIN.C 22608 | -1/Command | 0b10 Conduit disabled 22621 | -1/Command | Destroyed MAIN.C Shell 22623 | -1/Command | MAIN.C activated Command garrisons 22642 | -1/Command | Destroyed MAIN.C 22646 | -1/Command | Discovered new exit (range 41) 22646 | -1/Command | Discovered new exit (range 100) 22646 | -1/Command | Extracted map data and part IDs from MAIN.C's data core 22733 | -1/Command | Found Vortex Chain Reactor 22736 | -1/Command | Found Vortex Chain Reactor 22739 | -1/Command | Found Null Cannon 23035 | -1/Command | Build established: Scavenger-Mutant 23385 | -1/Command | Build established: Scavenger-Sprinter 23396 | -1/Command | All MAIN.C guards destroyed 23620 | -1/Command | Found Centrium Heavy Armor Plating 23723 | -1/Command | Warped through subspace to slip node 23723 | -1/Command | Discovered new exit (range 5) 23734 | -1/Command | Entered Access_0 23735 | -1/Access_0 | Sensed 2 artifacts in vicinity 23735 | -1/Access_0 | Met Architect 23748 | -1/Access_0 | Destroyed A8 23751 | -1/Access_0 | Architect warped through subspace 23810 | -1/Access_0 | Architect warped through subspace 23822 | -1/Access_0 | Found Exp. Powered Armor 23826 | -1/Access_0 | Found Exp. Powered Armor 23836 | -1/Access_0 | Architect warped through subspace 23884 | -1/Access_0 | Architect warped through subspace 23895 | -1/Access_0 | A6 warped into view 23907 | -1/Access_0 | Destroyed A6 23911 | -1/Access_0 | System corruption reached 10% 23927 | -1/Access_0 | Architect warped through subspace 23959 | -1/Access_0 | Architect warped through subspace 23983 | -1/Access_0 | Architect warped through subspace 23999 | -1/Access_0 | Subspace Access Node disabled 24023 | -1/Access_0 | Architect warped through subspace 24060 | -1/Access_0 | A5 warped into view 24072 | -1/Access_0 | Destroyed A5 24091 | -1/Access_0 | Architect warped through subspace 24129 | -1/Access_0 | Subspace Access Node disabled 24150 | -1/Access_0 | Subspace Access Node disabled 24155 | -1/Access_0 | Subspace Access Node disabled 24202 | -1/Access_0 | Destroyed Architect 24203 | -1/Access_0 | Architect triggered a singularity event 24205 | -1/Access_0 | Extracted unknown sensor trigger ID from Architect's data core 24205 | -1/Access_0 | Found Hpw. Transdimensional Reconstructor 24205 | -1/Access_0 | Warped through subspace to slip node 24205 | -1/Access_0 | Discovered new exit (range 8) 24209 | *** | Escaped singularity! Last Messages --------------- 24203_ A0_COM: Initiating irreversible singularity event. Goodbye. 24203_ Impact Drone system terminally corrupted. 24204_ A0_COM: 10. 24204_ Acquired 39 matter. 24205_ A0_COM: 9. 24205_ Acquired data core, extracted unknown sensor trigger ID. 24205_ Acquired 16 matter. 24205_ Acquired Hpw. Transdimensional Reconstructor. 24205_ Warped through subspace, drawn to slip node. 24205_ EXIT=FOUND 24206_ A0_COM: 8. 24207_ A0_COM: 7. 24208_ A0_COM: 6. 24209_ A0_COM: 5. [Achievement: 75k Club] [Achievement: Planet Killer] Map ----- +----------------------------------------------------+ | | | | | | | | | | | | | | | | | | | | | | | | | | | | | | | | | ?????????????????????????????????????????????????? | | ?????????????????????????????????????????????????? | | ?????????????????????????????????????????????????? | | ?????????????????????????????????????????????????? | | ?????????????????????????????????????????????????? | | ?????????????????????????????????????????????????? | | ????????????????????????###??????????????????????? | | ???????????????????????## ##?????????????????????? | | ???????????????????????# #?????????????????????? | | ???????????????????????# @ #?????????????????????? | | ??????????????????????## #?????????????????????? | | ??????????????????????# #?????????????????????? | | ??????????????????????# ##?????????????????????? | | ??????????????????????## #?????????????????????? | | ??????????????????????# #?????????????????????? | | ??????????????????????# ##?????????????????????? | | ??????????????????????# < #?????????????????????? | | ??????????????????????# ##?????????????????????? | | ??????????????????????## #??????????????????????? | | ???????????????????????####??????????????????????? | | ?????????????????????????????????????????????????? | | ?????????????????????????????????????????????????? | | ?????????????????????????????????????????????????? | | ?????????????????????????????????????????????????? | | ?????????????????????????????????????????????????? | | ?????????????????????????????????????????????????? | | ?????????????????????????????????????????????????? | | ?????????????????????????????????????????????????? | | ?????????????????????????????????????????????????? | | ?????????????????????????????????????????????????? | | ?????????????????????????????????????????????????? | | ?????????????????????????????????????????????????? | | ?????????????????????????????????????????????????? | | ?????????????????????????????????????????????????? | +----------------------------------------------------+ Best States ------------- Heat Dissipation 82 Coolant Potential 120 Energy Generation 83 Energy Capacity 2050 Matter Stores 300 Matter Capacity 400 Sight Range 24 Robot Scan Range 20 Terrain Scan Range 24 Terrain Scan Density 10 ECM Strength 2 Jamming Range 14 Cloak Strength 9 Base Temperature (-) 200 EM Shielding 3 Armor Coverage 800 Resistance: EX 75 Resistance: EM 25 Core Shielding 90 Propulsion Shielding 33 Utility Shielding 66 Melee Speed Boost 50 Phase Shifting 15 Evasion (%) 84 Targeting Accuracy 30 Melee Accuracy 8 Target Analysis 10 Core Analysis 11 Armor Integrity Analysis 50 Recoil Reduction 6 Particle Charging 22 Offensive Hacking 10 Defensive Hacking 34 Item Schematics ----------------- Hvy. Proton Cannon | -3/Protoforge | Archive Adv. EM Disruption Field | -3/Protoforge | Archive Enh. Force Rifle | -3/Protoforge | Archive Imp. Diametric Drive | -3/Protoforge | Archive Stealth Drone Bay | -3/Protoforge | Archive Hellfire Missile Launcher | -3/Protoforge | Archive Hvy. Hardcell Cannon | -3/Protoforge | Archive Imp. Energy Well | -3/Protoforge | Archive Com. Tesla Bomb Launcher | -3/Protoforge | Archive Cld. Phase Cannon | -3/Protoforge | Archive Exp. Shield Generator | -3/Protoforge | Archive Adv. KE Penetrator | -3/Protoforge | Archive Diametric Drive | -3/Protoforge | Archive Exp. Energy Well | -3/Protoforge | Archive Com. Particle Reactor | -3/Protoforge | Archive Prc. Energy Filter | -3/Protoforge | Archive Tactical Quantum Warhead | -3/Protoforge | Archive Hvy. Wave Gun | -3/Protoforge | Archive Cld. Fission Core | -3/Protoforge | Archive Exp. Signal Interpreter | -3/Protoforge | Archive Robot Schematics ------------------ K-01 Serf | -3/Protoforge | Archive A-15 Conveyor | -3/Protoforge | Archive R-10 Processor | -3/Protoforge | Archive H-77 Assassin | -3/Protoforge | Archive Fabricated ------------ M-28 Smith | x1 | -6/Factory | Preloaded Imp. System Restoration Module | x2 | -6/Factory | Preloaded Repaired ---------- Lgt. Armor Plating | 24% | -10/Materials Imp. Treads | 34% | -9/Storage Imp. Dynamic Insulation System | 32% | -4/Factory Centrium Medium Armor Plating | 58% | -1/Command Studied --------- Quantum Reactor | -3/Protoforge | Hacked Alien Tech Used ----------------- Sigix Broadsword Core Reset Matrix Dimensional Node Initializer Concept Nanofilaments [Conductive] High-powered Transdimensional Reconstructor Achievements -------------- 75k Club Anti-science Crusade Behind The Curtain Definitely A Prototype Fitting Room Hulk Smash IP Theft Inventory(Loot) Martial Artist Not Immortal After All Planet Killer Some Acronyms Are Better Than Others Super-what Now? The Bigger They Are We Are One Window Shopping Worth The Wait Challenges ------------ None Game ------ Seed FlakShadeCore Manual? 0 Play Time 12:37:27 Cumulative 211.7 hours Start 2025.12.07 @ 15:11:35 End 2025.12.14 @ 11:19:22 Sessions 8 Manual Loads 0 Difficulty Rogue Special Mode None Game No. 78 Rogue 74 Adventurer 1 Explorer 3 Win Type 6 Total 8 Types 4/2/1/0/0/0/1/0/0/0 Lore% 70 Gallery% 74 Achievement% 53 Wizard Run 0 Options --------- Layout 2 ASCII 0 Keyboard 1 Movement Numpad Keybinds 0 Fullscreen 1 Font 32/SmallcapsGlow Map View 50x44 Zoom Use 0% Tactical HUD 1 Map Filters NONE Filters NONE Steam 1 RUN: 98b57b2a-e07c-42fb-af1e-14029e5dff04